Workbook

Sheet Inicio Monetarismo
A25: Descargue la versión Kindle

Sheet IS_LM_monetarista (hidden)
A1: MODELO MONETARISTA
A2: MODELO IS-LM: economía cerrada, con gobierno y precios rígidos
B3: DEMANDA AGREGADA
B4: Y | C4: C | D4: I | E4: G | I4: VARIABLES | J4: ORIGINAL | K4: CHOQUE | L4: VAR ABS | M4: VAR REL
B5: ='Oculto MONET'!A27 -> 3,118 | C5: ='Oculto MONET'!B27 -> 2,294 | D5: ='Oculto MONET'!C27 -> 324 | E5: ='Oculto MONET'!D27 -> 500 | I5: Y | J5: ='Oculto MONET'!N58 -> 3,117.6 | K5: ='Oculto MONET'!O58 -> 3,117.6 | L5: =K5-J5 -> 0 | M5: ='Oculto MONET'!Q58 -> 0%
C6: =C5/$B$5 -> 74% | D6: =D5/$B$5 -> 10% | E6: =E5/$B$5 -> 16% | I6: r | J6: ='Oculto MONET'!N59 -> 23.7 | K6: ='Oculto MONET'!O59 -> 23.7 | L6: ='Oculto MONET'!P59 -> 0
I7: C | J7: ='Oculto MONET'!N60 -> 2,294.1 | K7: ='Oculto MONET'!O60 -> 2,294.1 | L7: ='Oculto MONET'!P60 -> 0 | M7: ='Oculto MONET'!Q60 -> 0%
B8: FUNCIÓN CONSUMO | I8: S | J8: ='Oculto MONET'!N61 -> 323.5 | K8: ='Oculto MONET'!O61 -> 323.5 | L8: ='Oculto MONET'!P61 -> 0 | M8: ='Oculto MONET'!Q61 -> 0%
B9: C | C9: b0 | D9: b1 | E9: T0 | I9: I | J9: ='Oculto MONET'!N62 -> 323.5 | K9: ='Oculto MONET'!O62 -> 323.5 | L9: ='Oculto MONET'!P62 -> 0 | M9: ='Oculto MONET'!Q62 -> 0%
B10: ='Oculto MONET'!A30 -> 2,294 | C10: 200 | D10: 0.80 | E10: 500 | I10: G | J10: ='Oculto MONET'!N63 -> 500.0 | K10: ='Oculto MONET'!O63 -> 500.0 | L10: ='Oculto MONET'!P63 -> 0 | M10: ='Oculto MONET'!Q63 -> 0%
C11: Inserte los datos correspondientes | I11: T | J11: ='Oculto MONET'!N64 -> 500.0 | K11: ='Oculto MONET'!O64 -> 500.0 | L11: ='Oculto MONET'!P64 -> 0 | M11: ='Oculto MONET'!Q64 -> 0%
B12: FUNCIÓN AHORRO | I12: DP | J12: ='Oculto MONET'!N65 -> 0 | K12: ='Oculto MONET'!O65 -> 0 | L12: ='Oculto MONET'!P65 -> 0 | M12: ='Oculto MONET'!Q65 -> 0.0%
B13: S | C13: -b0 | D13: 1-b1 | E13: T0 | I13: Ms | J13: ='Oculto MONET'!N66 -> 1,200.0 | K13: ='Oculto MONET'!O66 -> 1,200.0 | L13: ='Oculto MONET'!P66 -> 0 | M13: ='Oculto MONET'!Q66 -> 0%
B14: ='Oculto MONET'!A33 -> 324 | C14: ='Oculto MONET'!B33 -> (200) | D14: ='Oculto MONET'!C33 -> 0.20 | E14: ='Oculto MONET'!D33 -> 500 | I14: Md | J14: ='Oculto MONET'!N67 -> 1,200.0 | K14: ='Oculto MONET'!O67 -> 1,200.0 | L14: ='Oculto MONET'!P67 -> 0 | M14: ='Oculto MONET'!Q67 -> 0%
I15: Pendiente IS | J15: ='Oculto MONET'!N69 -> -0.00020 | K15: ='Oculto MONET'!O69 -> -0.00020 | L15: ='Oculto MONET'!P69 -> 0 | M15: ='Oculto MONET'!Q69 -> 0%
B16: FUNCIÓN INVERSIÓN | D16: Inserte los datos correspondientes | I16: Pendiente LM | J16: ='Oculto MONET'!N71 -> 0.01000 | K16: ='Oculto MONET'!O71 -> 0.01000 | L16: ='Oculto MONET'!P71 -> 0 | M16: ='Oculto MONET'!Q71 -> 0%
B17: I | C17: i0 | D17: i1 | J17: Esta seccion muestra los efectos de la política económica
B18: ='Oculto MONET'!A36 -> 324 | C18: 24,000 | D18: (1,000)
B20: GASTO DE GOBIERNO | E20: Déficit Público
B21: G | C21: G0 | E21: T-G
B22: ='Oculto MONET'!A39 -> 500 | C22: 500 | E22: ='Oculto MONET'!D39 -> 0
B24: FUNCIÓN DEMANDA DE DINERO
B25: Md | C25: m0 | D25: m1 | E25: m2
B26: 1,200 | C26: 600 | D26: 0.80 | E26: (80)
B28: OFERTA DE DINERO
B29: Ms | C29: M0
B30: ='Oculto MONET'!A45 -> 1200.0 | C30: 1200.0
B32: VALORES DE EQUILIBRIO INICIALES
B33: Y | C33: rn | D33: Pend. IS | E33: Pend. LM
B34: ='Oculto MONET'!A48 -> 3,118 | C34: ='Oculto MONET'!B48 -> 23.7 | D34: ='Oculto MONET'!D48 -> -0.000 | E34: ='Oculto MONET'!E48 -> 0.010
B36: POLÍTICA ECONÓMICA
B37: MONETARIA | C37: FISCAL | E37: EXOGENO
B38: M1 | C38: T1 | D38: G1 | E38: b0 | F38: i0
B39: ='Oculto MONET'!A53 -> 1,200 | C39: ='Oculto MONET'!B53 -> 500 | D39: ='Oculto MONET'!D53 -> 500 | E39: ='Oculto MONET'!E53 -> 200 | F39: ='Oculto MONET'!F53 -> 24,000
B40: 0% | C40: 0% | D40: 0% | E40: 0% | F40: 0%
B42: NUEVOS VALORES DE EQUILIBRIO
B43: Y | C43: rn | D43: Pend. IS | E43: Pend. LM
B44: ='Oculto MONET'!L48 -> 3,118 | C44: ='Oculto MONET'!M48 -> 23.7 | D44: ='Oculto MONET'!O48 -> -0.000 | E44: ='Oculto MONET'!P48 -> 0.010
B46: Títulos
B47: Resultados
B48: Insertar datos
B49: Equilibrio
B50: Poítica económica

Sheet tasa_interes (hidden)
A1: MODELO MONETARISTA
A2: Tasa de interés real simple y en valor presente
B10: TASA DE INTERÉS REAL A VALOR PRESENTE
B11: Tasa de interés real | C11: Tasa de interés nominal | D11: Inflación esperada
B12: ='Oculto MONET'!BD160 -> 0.84% | C12: 20.00% | D12: 19.00%
B15: TASA DE INTERÉS REAL SIN DESCONTAR
B16: Tasa de interés real | C16: Tasa de interés nominal | D16: Inflación esperada
B17: ='Oculto MONET'!BD163 -> 1.00% | C17: ='Oculto MONET'!BE163 -> 20.00% | D17: ='Oculto MONET'!BF163 -> 19.00%
B22: Títulos
B23: Resultados
B24: Insertar Datos
D118: -20799000

Sheet curvap (hidden)
A1: MODELO MONETARISTA
A2: Curva de Phillips de largo plazo
B7: CURVA DE PHILLIPS CORTO PLAZO 1
B8: p1 | C8: α0 | D8: α1 | E8: u
B9: ='Oculto MONET'!Q130 -> 0% | C9: 5% | D9: (1.00) | E9: 5%
B10: CURVA DE PHILLIPS CORTO PLAZO 2
B11: p2 | C11: α0 | D11: α1 | E11: u
B12: ='Oculto MONET'!Q133 -> 0% | C12: =C9+C27 -> 5% | D12: (1.00) | E12: 10%
B13: CURVA DE PHILLIPS CORTO PLAZO 3
B14: p3 | C14: α0 | D14: α1 | E14: u
B15: ='Oculto MONET'!Q136 -> 0% | C15: =C12+C28 -> 5% | D15: (1.00) | E15: 10%
B16: CURVA DE PHILLIPS CORTO PLAZO 4
B17: p4 | C17: α0 | D17: α1 | E17: u
B18: ='Oculto MONET'!Q139 -> 0% | C18: =C15+C29 -> 5% | D18: (1.00) | E18: 10%
B19: CURVA DE PHILLIPS CORTO PLAZO 5
B20: p5 | C20: α0 | D20: α1 | E20: u
B21: ='Oculto MONET'!Q142 -> 0% | C21: =C18+C30 -> 5% | D21: (1.00) | E21: 10%
B24: POLÍTICA MONETARIA (VARIACIÓN PORCENTUAL)
C25: Ms
B26: Periodo 1 | C26: 0%
B27: Periodo 2 | C27: 0%
B28: Periodo 3 | C28: 0% | D28: 4
B29: Periodo 4 | C29: 0%
B30: Periodo 5 | C30: 0%
B32: Títulos
B33: Resultados
B34: Insertar datos
B47: Equilibrio
AZ129: =AX129 -> 0 | BA129: =AY129 -> 0
BA130: =AY130 -> 0
BA131: 0
BA132: 0
BA133: 0
BA134: 0
BA135: 0
BA136: 0
BA137: 0
BA138: 0
BA139: 0
BA140: 0
BA141: 0
BA142: 0
BA143: 0
BA144: 0
BA145: 0
BA146: 0
BA147: 0
S148: =R148 -> 0 | BA148: 0
S149: =R149 -> 0 | BA149: 0
S150: =R150 -> 0
S151: =R151 -> 0

Sheet tipo_cambio (hidden)
A1: MODELO MONETARISTA
A2: Enfoque monetario del tipo de cambio
B4: Tipo de cambio en el periodo 1
B5: Periodo 1 | C5: Local | D5: Externo
B6: Tc | C6: ='Oculto MONET'!C151 -> 1.0
B7: M | C7: 1,000 | D7: 20,000
B8: Y | C8: 5,000 | D8: 100,000
B9: k | C9: 0.20 | D9: ='Oculto MONET'!D154 -> 0.20
B10: P | C10: ='Oculto MONET'!C155 -> 1.0 | D10: ='Oculto MONET'!D155 -> 1.0
B12: Tipo de cambio en el periodo 2
B13: Periodo 2 | C13: Local | D13: Externo
B14: tc | C14: ='Oculto MONET'!C159 -> 1.0
B15: M | C15: =C7 -> 1,000 | D15: =D7 -> 20,000
B16: Y | C16: =C8 -> 5,000 | D16: =D8 -> 100,000
B17: k | C17: =C9 -> 0.20 | D17: ='Oculto MONET'!D162 -> 0.20
B18: p | C18: ='Oculto MONET'!C163 -> 1.0 | D18: ='Oculto MONET'!D163 -> 1.0
B20: Diferencias en TC, Inf y Y.
C21: Local | D21: Externo
B22: Dtc | C22: ='Oculto MONET'!C167 -> 0.0
B23: inf | C23: ='Oculto MONET'!C168 -> 0.0 | D23: ='Oculto MONET'!D168 -> 0.0
B24: Dy | C24: ='Oculto MONET'!C169 -> 0.0 | D24: ='Oculto MONET'!D169 -> 0.0
B28: Títulos
B29: Resultados
B30: Insertar datos
D118: -20799000

Sheet consumo medio (hidden)
A1: MODELO MONETARISTA
A2: Función consumo medio y la hipótesis del ingreso permanente
B4: FUNCION CONSUMO TOTAL | K4: ='Oculto MONET'!G186 -> Periodos | L4: ='Oculto MONET'!F186 -> Error | M4: ='Oculto MONET'!F186 -> Error
B5: C | C5: k | D5: YP | K5: ='Oculto MONET'!G187 -> 1 | L5: =M5 -> 3 | M5: ='Oculto MONET'!F187 -> 3
B6: ='Oculto MONET'!A130 -> 57.52 | C6: 0.60 | D6: ='Oculto MONET'!C130 -> 95.86 | K6: ='Oculto MONET'!G188 -> 2 | L6: 3.39 | M6: ='Oculto MONET'!F188 -> 3.39
K7: ='Oculto MONET'!G189 -> 3 | L7: 3.5217 | M7: ='Oculto MONET'!F189 -> 3.5217
B8: FUNCION INGRESO PERMANENTE | K8: ='Oculto MONET'!G190 -> 4 | L8: 3.630351 | M8: ='Oculto MONET'!F190 -> 3.630351
B9: YP | C9: YPt-1 | D9: j | E9: Yt-0 | F9: YPt-1 | K9: ='Oculto MONET'!G191 -> 5 | L9: 3.73956153 | M9: ='Oculto MONET'!F191 -> 3.73956153
B10: ='Oculto MONET'!A133 -> 95.86 | C10: 100.00 | D10: 0.90 | E10: =D20 -> 103.86 | F10: ='Oculto MONET'!E133 -> 100.00 | K10: ='Oculto MONET'!G192 -> 6 | L10: 3.851778376 | M10: ='Oculto MONET'!F192 -> 3.851778376
K11: ='Oculto MONET'!G193 -> 7 | L11: 3.967334727 | M11: ='Oculto MONET'!F193 -> 3.967334727
C12: Error del periodo | E12: =E10-C10 -> 3.86 | K12: ='Oculto MONET'!G194 -> 8 | L12: 4.086355069 | M12: ='Oculto MONET'!F194 -> 4.086355069
K13: ='Oculto MONET'!G195 -> 9 | L13: 4.208945751 | M13: ='Oculto MONET'!F195 -> 4.208945751
K14: ='Oculto MONET'!G196 -> 10 | L14: 4.335214127 | M14: ='Oculto MONET'!F196 -> 4.335214127
D18: Ingreso aleatorio (YT)
D20: =(RANDBETWEEN(1,(B10*0.5)))+(B10-((RANDBETWEEN(1,(B10*0.3))/1.5))) -> 103.86
B24: Periodo 1,6 | C24: Periodo 2,7 | D24: Periodo 3,8 | E24: Periodo 4,9 | F24: Periodo 5,10
B25: 90.46 | C25: 119.26 | D25: 111.16 | E25: 92.26 | F25: 120.16
B26: 104.86 | C26: 106.66 | D26: 112.96 | E26: 87.76 | F26: 118.36
E27: Promedio | F27: =AVERAGE(B25:F26) -> 106.39
E28: Maximo | F28: =MAX(B25:F26) -> 120.16
E29: Minimo | F29: =MIN(B25:F26) -> 87.76
B35: Títulos
B36: Resultados
B37: Insertar Datos

Sheet Oculto MONET (hidden)
A1: IS-LM ECONOMÍA CERRADA CON GOBIERNO Y PRECIOS RÍGIDOS | L1: IS-LM (MOV) ECONOMÍA CERRADA CON GOBIERNO Y PRECIOS RÍGIDOS
A2: Unidades | B2: ponderador | C2: IS(Y) | D2: IS(rn) | E2: LM(rn) | F2: LM(Y) | G2: ISLine | I2: LMLine | L2: IS(Y) | M2: IS(rn) | N2: LM(rn) | O2: LM(Y) | P2: ISMovLine | R2: LMMovLine
A3: 0 | B3: 0.90 | C3: =((1/F$48)*(G$48))-((1/F$48)*(C$36*D3)) -> 4,296.16 | D3: =D4*(1-$G$27) -> 23.44 | E3: =H$48+((C$42/D$42)*F3) -> 35.46 | F3: =C3 -> 4,296.16 | G3: =C$13 -> 3,117.65 | H3: =I3*($A3/$A$23) -> 0 | I3: =D$13 -> 23.68 | J3: =G3*$A3/$A$23 -> 0 | L3: =((1/Q$48)*(R$48))-((1/Q$48)*(N$36*M3)) -> 4,296.16 | M3: =M4*(1-$G$27) -> 23.44 | N3: =S$48+((N$42/O$42)*O3) -> 35.46 | O3: =L3 -> 4,296.16 | P3: =L$13 -> 3,117.65 | Q3: =R3*($A3/$A$23) -> 0 | R3: =M$13 -> 23.68 | S3: =P3*$A3/$A$23 -> 0
A4: 1 | B4: 0.91 | C4: 4,178.84 | D4: 23.46 | E4: 34.29 | F4: 4,178.84 | G4: =C$13 -> 3,117.65 | H4: 1.18 | I4: =D$13 -> 23.68 | J4: 155.88 | L4: 4,178.84 | M4: 23.46 | N4: 34.29 | O4: 4,178.84 | P4: =L$13 -> 3,117.65 | Q4: 1.18 | R4: =M$13 -> 23.68 | S4: 155.88
A5: 2 | B5: 0.92 | C5: 4,061.40 | D5: 23.49 | E5: 33.11 | F5: 4,061.40 | G5: 3,117.65 | H5: 2.37 | I5: 23.68 | J5: 311.76 | L5: 4,061.40 | M5: 23.49 | N5: 33.11 | O5: 4,061.40 | P5: 3,117.65 | Q5: 2.37 | R5: 23.68 | S5: 311.76
A6: 3 | B6: 0.93 | C6: 3,943.84 | D6: 23.51 | E6: 31.94 | F6: 3,943.84 | G6: 3,117.65 | H6: 3.55 | I6: 23.68 | J6: 467.65 | L6: 3,943.84 | M6: 23.51 | N6: 31.94 | O6: 3,943.84 | P6: 3,117.65 | Q6: 3.55 | R6: 23.68 | S6: 467.65
A7: 4 | B7: 0.94 | C7: 3,826.17 | D7: 23.53 | E7: 30.76 | F7: 3,826.17 | G7: 3,117.65 | H7: 4.74 | I7: 23.68 | J7: 623.53 | L7: 3,826.17 | M7: 23.53 | N7: 30.76 | O7: 3,826.17 | P7: 3,117.65 | Q7: 4.74 | R7: 23.68 | S7: 623.53
A8: 5 | B8: 0.95 | C8: 3,708.38 | D8: 23.56 | E8: 29.58 | F8: 3,708.38 | G8: 3,117.65 | H8: 5.92 | I8: 23.68 | J8: 779.41 | L8: 3,708.38 | M8: 23.56 | N8: 29.58 | O8: 3,708.38 | P8: 3,117.65 | Q8: 5.92 | R8: 23.68 | S8: 779.41
A9: 6 | B9: 0.96 | C9: 3,590.47 | D9: 23.58 | E9: 28.40 | F9: 3,590.47 | G9: 3,117.65 | H9: 7.10 | I9: 23.68 | J9: 935.29 | L9: 3,590.47 | M9: 23.58 | N9: 28.40 | O9: 3,590.47 | P9: 3,117.65 | Q9: 7.10 | R9: 23.68 | S9: 935.29
A10: 7 | B10: 0.97 | C10: 3,472.44 | D10: 23.61 | E10: 27.22 | F10: 3,472.44 | G10: 3,117.65 | H10: 8.29 | I10: 23.68 | J10: 1,091.18 | L10: 3,472.44 | M10: 23.61 | N10: 27.22 | O10: 3,472.44 | P10: 3,117.65 | Q10: 8.29 | R10: 23.68 | S10: 1,091.18
A11: 8 | B11: 0.98 | C11: 3,354.29 | D11: 23.63 | E11: 26.04 | F11: 3,354.29 | G11: 3,117.65 | H11: 9.47 | I11: 23.68 | J11: 1,247.06 | L11: 3,354.29 | M11: 23.63 | N11: 26.04 | O11: 3,354.29 | P11: 3,117.65 | Q11: 9.47 | R11: 23.68 | S11: 1,247.06
A12: 9 | B12: 0.99 | C12: 3,236.03 | D12: =D13*(1-$G$27) -> 23.65 | E12: 24.86 | F12: 3,236.03 | G12: 3,117.65 | H12: 10.65 | I12: 23.68 | J12: 1,402.94 | L12: 3,236.03 | M12: =M13*(1-$G$27) -> 23.65 | N12: 24.86 | O12: 3,236.03 | P12: 3,117.65 | Q12: 10.65 | R12: 23.68 | S12: 1,402.94
A13: 10 | B13: 1.00 | C13: =((1/F$48)*(G$48))-((1/F$48)*(C$36*D13)) -> 3,117.65 | D13: =B$48 -> 23.68 | E13: 23.68 | F13: =C13 -> 3,117.65 | G13: 3,117.65 | H13: 11.84 | I13: 23.68 | J13: 1,558.82 | L13: 3,117.65 | M13: =M$48 -> 23.68 | N13: 23.68 | O13: =L13 -> 3,117.65 | P13: 3,117.65 | Q13: 11.84 | R13: 23.68 | S13: 1,558.82
A14: 11 | B14: 1.01 | C14: 2,999.26 | D14: =D13*(1+$G$27) -> 23.70 | E14: 22.49 | F14: =C14 -> 2,999.26 | G14: 3,117.65 | H14: 13.02 | I14: 23.68 | J14: 1,714.71 | L14: 2,999.26 | M14: =M13*(1+$G$27) -> 23.70 | N14: 22.49 | O14: =L14 -> 2,999.26 | P14: 3,117.65 | Q14: 13.02 | R14: 23.68 | S14: 1,714.71
A15: 12 | B15: 1.02 | C15: 2,880.76 | D15: 23.72 | E15: 21.31 | F15: 2,880.76 | G15: 3,117.65 | H15: 14.21 | I15: 23.68 | J15: 1,870.59 | L15: 2,880.76 | M15: 23.72 | N15: 21.31 | O15: 2,880.76 | P15: 3,117.65 | Q15: 14.21 | R15: 23.68 | S15: 1,870.59
A16: 13 | B16: 1.03 | C16: 2,762.14 | D16: 23.75 | E16: 20.12 | F16: 2,762.14 | G16: 3,117.65 | H16: 15.39 | I16: 23.68 | J16: 2,026.47 | L16: 2,762.14 | M16: 23.75 | N16: 20.12 | O16: 2,762.14 | P16: 3,117.65 | Q16: 15.39 | R16: 23.68 | S16: 2,026.47
A17: 14 | B17: 1.04 | C17: 2,643.41 | D17: 23.77 | E17: 18.93 | F17: 2,643.41 | G17: 3,117.65 | H17: 16.57 | I17: 23.68 | J17: 2,182.35 | L17: 2,643.41 | M17: 23.77 | N17: 18.93 | O17: 2,643.41 | P17: 3,117.65 | Q17: 16.57 | R17: 23.68 | S17: 2,182.35
A18: 15 | B18: 1.05 | C18: 2,524.55 | D18: 23.80 | E18: 17.75 | F18: 2,524.55 | G18: 3,117.65 | H18: 17.76 | I18: 23.68 | J18: 2,338.24 | L18: 2,524.55 | M18: 23.80 | N18: 17.75 | O18: 2,524.55 | P18: 3,117.65 | Q18: 17.76 | R18: 23.68 | S18: 2,338.24
A19: 16 | B19: 1.06 | C19: 2,405.57 | D19: 23.82 | E19: 16.56 | F19: 2,405.57 | G19: 3,117.65 | H19: 18.94 | I19: 23.68 | J19: 2,494.12 | L19: 2,405.57 | M19: 23.82 | N19: 16.56 | O19: 2,405.57 | P19: 3,117.65 | Q19: 18.94 | R19: 23.68 | S19: 2,494.12
A20: 17 | B20: 1.07 | C20: 2,286.48 | D20: 23.84 | E20: 15.36 | F20: 2,286.48 | G20: 3,117.65 | H20: 20.13 | I20: 23.68 | J20: 2,650.00 | L20: 2,286.48 | M20: 23.84 | N20: 15.36 | O20: 2,286.48 | P20: 3,117.65 | Q20: 20.13 | R20: 23.68 | S20: 2,650.00
A21: 18 | B21: 1.08 | C21: 2,167.27 | D21: 23.87 | E21: 14.17 | F21: 2,167.27 | G21: 3,117.65 | H21: 21.31 | I21: 23.68 | J21: 2,805.88 | L21: 2,167.27 | M21: 23.87 | N21: 14.17 | O21: 2,167.27 | P21: 3,117.65 | Q21: 21.31 | R21: 23.68 | S21: 2,805.88
A22: 19 | B22: 1.09 | C22: 2,047.93 | D22: 23.89 | E22: 12.98 | F22: 2,047.93 | G22: 3,117.65 | H22: 22.49 | I22: 23.68 | J22: 2,961.76 | L22: 2,047.93 | M22: 23.89 | N22: 12.98 | O22: 2,047.93 | P22: 3,117.65 | Q22: 22.49 | R22: 23.68 | S22: 2,961.76
A23: 20 | B23: 1.10 | C23: 1,928.48 | D23: 23.91 | E23: 11.78 | F23: 1,928.48 | G23: 3,117.65 | H23: 23.68 | I23: 23.68 | J23: 3,117.65 | L23: 1,928.48 | M23: 23.91 | N23: 11.78 | O23: 1,928.48 | P23: 3,117.65 | Q23: 23.68 | R23: 23.68 | S23: 3,117.65
A26: Y | B26: C | C26: I | D26: G | G26: 0.5 | L26: Y | M26: C | N26: I | O26: G
A27: =SUM(B27:D27) -> 3117.6 | B27: =A30 -> 2294.1 | C27: =A36 -> 323.5 | D27: =A39 -> 500.0 | G27: 0.001 | L27: =SUM(M27:O27) -> 3117.6 | M27: =L30 -> 2294.1 | N27: =L36 -> 323.5 | O27: =L39 -> 500.0
A28: FUNCIÓN CONSUMO | L28: FUNCIÓN CONSUMO
A29: C | B29: b0 | C29: b1 | D29: T | E29: T | L29: C | M29: b0 | N29: b1 | O29: T | P29: Tr
A30: =B30+C30*(A48-D30) -> 2294.1 | B30: =IS_LM_monetarista!C10 -> 200.0 | C30: =IS_LM_monetarista!D10 -> 0.80 | D30: =IS_LM_monetarista!E10 -> 500.00 | E30: 0 | L30: =M30+N30*(L48-O30) -> 2294.1 | M30: =E53 -> 200.0 | N30: =C30 -> 0.80 | O30: =B53 -> 500.00 | P30: =C53 -> 0
A31: FUNCIÓN AHORRO | L31: FUNCIÓN AHORRO
A32: S | B32: -b0 | C32: 1-b1 | D32: T | L32: S | M32: -b0 | N32: 1-b1 | O32: T
A33: =B33+C33*(A48-D33) -> 323.5 | B33: =B30*-1 -> -200.0 | C33: =1-C30 -> 0.20 | D33: =D30 -> 500.0 | L33: =M33+N33*(L48-O33) -> 323.5 | M33: =M30*-1 -> -200.0 | N33: =1-N30 -> 0.20 | O33: =O30 -> 500.0
A34: FUNCIÓN INVERSIÓN | L34: FUNCIÓN INVERSIÓN
A35: I | B35: i0 | C35: i1 | L35: I | M35: i0 | N35: i1
A36: =B36-C36*B48 -> 323.5 | B36: =IS_LM_monetarista!C18 -> 24000.0 | C36: =IS_LM_monetarista!D18*-1 -> 1000.0 | L36: =M36-N36*M48 -> 323.5 | M36: =F53 -> 24000.0 | N36: =C36 -> 1000.0
A37: FUNCIÓN GASTO DE GOBIERNO | D37: Déficit Público | L37: FUNCIÓN GASTO DE GOBIERNO | O37: Déficit Público
A38: G | B38: g0 | D38: T-G | L38: G | M38: g0 | O38: T-G
A39: =B39 -> 500.0 | B39: =IS_LM_monetarista!C22 -> 500.0 | D39: =D30-B39 -> 0 | L39: =M39 -> 500.0 | M39: =D53 -> 500.0 | O39: =O30-M39 -> 0
A40: FUNCIÓN DEMANDA DE DINERO | L40: FUNCIÓN DEMANDA (OFERTA) DE DINERO
A41: Md | B41: c0 | C41: c1 | D41: c2 | L41: Md | M41: c0 | N41: c1 | O41: c2
A42: =B42+C42*A48-D42*B48 -> 1200.0 | B42: =IS_LM_monetarista!C26 -> 600.0 | C42: =IS_LM_monetarista!D26 -> 0.80 | D42: =IS_LM_monetarista!E26*-1 -> 80.0 | L42: =M42+N42*L48-O42*M48 -> 1200.0 | M42: =B42 -> 600.0 | N42: =C42 -> 0.80 | O42: =D42 -> 80.0
A43: OFERTA DE DINERO | L43: OFERTA DE DINERO
A44: Md | B44: Ms | L44: Md | M44: Ms
A45: =B45 -> 1200.0 | B45: =IS_LM_monetarista!C30 -> 1200.0 | L45: =M45 -> 1200.0 | M45: =A53 -> 1200.00
A47: Y | B47: rn | C47: multiplica | D47: Pend. IS | E47: Pend. LM | F47: 1-b1 | G47: Absorción | H47: Ddin auto | L47: Y | M47: rn | N47: multiplica | O47: Pend. IS | P47: Pend. LM | Q47: W | R47: Absorción | S47: Ddin auto
A48: =C48*(G48-(C36*H48)) -> 3117.6 | B48: =C48*((F48*H48)+(C42/D42*G48)) -> 23.7 | C48: =1/((1-(C30))+(C36*C42/D42)) -> 0.10 | D48: =F48/C36*-1 -> -0.000200000 | E48: =C42/D42 -> 0.0100000000 | F48: =1-(C30) -> 0.20 | G48: =B30+(C30*D30*-1)+B36+B39 -> 24300.000 | H48: =(B42-B45)/D42 -> -7.500 | L48: =N48*(R48-(N36*S48)) -> 3117.6 | M48: =N48*((Q48*S48)+(N42/O42*R48)) -> 23.7 | N48: =1/((1-(N30))+(N36*N42/O42)) -> 0.10 | O48: =Q48/N36*-1 -> -0.000200000 | P48: =N42/O42 -> 0.0100000000 | Q48: =1-(N30) -> 0.20 | R48: =M30+(N30*O30*-1)+M36+M39 -> 24300.000 | S48: =(M42-M45)/O42 -> -7.500
L49: DIFERENCIA ABSOLUTA Y PORCENTUAL
A50: POLÍTICA ECONÓMICA | L50: Y | M50: rn | N50: multiplica | O50: Pend. IS | P50: Pend. LM | Q50: Déficit Pub.
A51: MONETARIA | B51: FISCAL | E51: EXOGENO | L51: =L48-A48 -> 0.0 | M51: =M48-B48 -> 0.0 | N51: =N48-C48 -> 0.0 | O51: =O48-D48 -> 0.000 | P51: =P48-E48 -> 0.000 | Q51: =L48*B53-D53-C53 -> 1,558,324
A52: Ms | B52: t | D52: g0 | E52: b0 | F52: i0 | L52: =L51/A48 -> 0.0% | M52: nd | N52: =N51/C48 -> 0.0% | O52: =O51/D48 -> 0.0% | P52: =P51/E48 -> 0.0% | Q52: =Q51/L48 -> 49984.0%
A53: =B45*(1+A54) -> 1200.00 | B53: =D30*(1+B54) -> 500.00 | D53: =B39*(1+D54) -> 500.00 | E53: =B30*(1+E54) -> 200.00 | F53: =B36*(1+F54) -> 24000.00
A54: =IS_LM_monetarista!B40 -> 0% | B54: =IS_LM_monetarista!C40 -> 0.00 | D54: =IS_LM_monetarista!D40 -> 0% | E54: =IS_LM_monetarista!E40 -> 0% | F54: =IS_LM_monetarista!F40 -> 0%
N55: =O58-N58 -> 0
L57: VARIABLES | M57: VARIABLES | N57: ORIGINAL | O57: CHOQUE | P57: VAR ABS | Q57: VAR REL
L58: Y | M58: Y | N58: =A48 -> 3,117.6 | O58: =L48 -> 3,117.6 | P58: =O58-N58 -> 0 | Q58: =O58/N58-1 -> 0
L59: r | M59: r | N59: =B48 -> 23.7 | O59: =M48 -> 23.7 | P59: =O59-N59 -> 0 | Q59: =O59/N59-1 -> 0
L60: C | M60: C | N60: =A30 -> 2,294.1 | O60: =L30 -> 2,294.1 | P60: 0 | Q60: 0
L61: S | M61: S | N61: =A33 -> 323.5 | O61: =L33 -> 323.5 | P61: 0 | Q61: 0
L62: I | M62: I | N62: =A36 -> 323.5 | O62: =L36 -> 323.5 | P62: 0 | Q62: 0
L63: G | M63: G | N63: =A39 -> 500.0 | O63: =L39 -> 500.0 | P63: 0 | Q63: 0
L64: T | M64: T | N64: =D30 -> 500.0 | O64: =O30 -> 500.0 | P64: 0 | Q64: 0
L65: DP | M65: DP | N65: =N64-N63 -> 0 | O65: =O64-O63 -> 0 | P65: 0 | Q65: =O65/O58 -> 0
L66: Ms | M66: Ms | N66: =B45 -> 1,200.0 | O66: =M45 -> 1,200.0 | P66: 0 | Q66: 0
L67: Ms | M67: Md | N67: =A42 -> 1,200.0 | O67: =L42 -> 1,200.0 | P67: 0 | Q67: 0
M68: Multiplicador | N68: =C48 -> 0.1 | O68: =N48 -> 0.1 | P68: 0 | Q68: 0
M69: Pendiente IS | N69: =D48 -> -0.00020 | O69: =O48 -> -0.00020 | P69: 0 | Q69: 0
P70: 0
M71: Pendiente LM | N71: =E48 -> 0.01000 | O71: =P48 -> 0.01000 | P71: 0 | Q71: 0
N72: Esta seccion muestra los efectos de la Política Económica
I97: l
C99: Obser. | D99: Pronostico | E99: Consumo total
A100: FUNCIÓN CONSUMO MONETARIASTA | Q100: CURVA DE PHILLIPS DE LARGO PLAZO | S100: 1 | T100: 1 | U100: 2 | V100: 3 | W100: 4 | X100: 5 | Z100: 2 | AA100: 3 | AB100: 4 | AC100: 5 | BQ100: CURVA DE PHILLIPS DE LARGO PLAZO | BS100: 1 | BT100: 1 | BU100: 2 | BV100: 3 | BW100: 4 | BX100: 5 | BZ100: 2 | CA100: 3 | CB100: 4 | CC100: 5
A101: Unidades | B101: ponderador | C101: Yt-o | D101: Yp | E101: Ct | F101: C/Y | G101: Yt-o | H101: Yp | I101: Ct | J101: C/Y | K101: C_linex | L101: C_liney | M101: LMLine | Q101: Unidades | R101: ponderador | S101: U | T101: P | U101: P | V101: P | W101: P | X101: P | Y101: LMLine | BQ101: Unidades | BR101: ponderador | BS101: U | BT101: P | BU101: P | BV101: P | BW101: P | BX101: P | BY101: LMLine
A102: 0 | B102: 0.30 | C102: =$D$133*B102 -> 28.62 | D102: =$B$133+($C$133*(C102-$E$133)) -> 35.76 | E102: =$B$130*D102 -> 21.45 | F102: =$B$136*($B$133/C102)+$D$136 -> 0.75 | G102: =$D$133*B102 -> 28.62 | H102: =$B$133 -> 100.00 | I102: =$B$130*H102 -> 60.00 | J102: =$B$130 -> 0.60 | K102: =$D$133 -> 95.40 | L102: =MAX($I$102,$A$130)*(A102/$A$122) -> 0 | M102: =MAX($F$112,$B$130)*O102 -> 0.54 | N102: =$B$130 -> 0.60 | O102: 0.9 | Q102: 0 | R102: 0.30 | S102: =$R102*$T$130 -> 0.02 | T102: =$R$130+($S$130*S102) -> 0.04 | U102: =$R$133+($S$133*S102) -> 0.04 | V102: =$R$136+($S$136*S102) -> 0.04 | W102: =$R$139+($S$139*S102) -> 0.04 | X102: =$R$142+($S$142*S102) -> 0.04 | Y102: =$T$130*(Q102/$Q$122) -> 0 | Z102: =$Q$133 -> 0 | AA102: =$Q$136 -> 0 | AB102: =$Q$139 -> 0 | AC102: =$Q$142 -> 0 | BQ102: 0 | BR102: 0.30 | BS102: =$R102*$T$130 -> 0.02 | BT102: =$R$130+($S$130*BS102) -> 0.04 | BU102: =$R$133+($S$133*BS102) -> 0.04 | BV102: =$R$136+($S$136*BS102) -> 0.04 | BW102: =$R$139+($S$139*BS102) -> 0.04 | BX102: =$R$142+($S$142*BS102) -> 0.04 | BY102: =$T$130*(BQ102/$Q$122) -> 0 | BZ102: =$Q$133 -> 0 | CA102: =$Q$136 -> 0 | CB102: =$Q$139 -> 0 | CC102: =$Q$142 -> 0
A103: 1 | B103: =B104-$G$27 -> 0.99 | C103: =$D$133*B103 -> 94.54 | D103: =$B$133+($C$133*(C103-$E$133)) -> 95.09 | E103: =$B$130*D103 -> 57.05 | F103: =$B$136*($B$133/C103)+$D$136 -> 0.60 | G103: =$D$133*B103 -> 94.54 | H103: =$B$133 -> 100.00 | I103: =$B$130*H103 -> 60.00 | J103: =$B$130 -> 0.60 | K103: =$D$133 -> 95.40 | L103: =MAX($I$102,$A$130)*(A103/$A$122) -> 3.00 | M103: =MAX($F$112,$B$130)*O103 -> 0.55 | N103: =$B$130 -> 0.60 | O103: =O102+$O$123 -> 0.905 | Q103: 1 | R103: =R104-$G$27 -> 0.99 | S103: =$R103*$T$130 -> 0.05 | T103: =$R$130+($S$130*S103) -> 0.00 | U103: =$R$133+($S$133*S103) -> 0.00 | V103: 0.00 | W103: 0.00 | X103: =$R$142+($S$142*S103) -> 0.00 | Y103: 0.00 | Z103: =$Q$133 -> 0 | AA103: =$Q$136 -> 0 | AB103: =$Q$139 -> 0 | AC103: =$Q$142 -> 0 | BQ103: 1 | BR103: =BR104-$G$27 -> 0.99 | BS103: =$R103*$T$130 -> 0.05 | BT103: =$R$130+($S$130*BS103) -> 0.00 | BU103: =$R$133+($S$133*BS103) -> 0.00 | BV103: 0.00 | BW103: 0.00 | BX103: =$R$142+($S$142*BS103) -> 0.00 | BY103: 0.00 | BZ103: =$Q$133 -> 0 | CA103: =$Q$136 -> 0 | CB103: =$Q$139 -> 0 | CC103: =$Q$142 -> 0
A104: 2 | B104: 0.99 | C104: 94.64 | D104: 95.17 | E104: 57.10 | F104: 0.60 | G104: 94.64 | H104: 100.00 | I104: 60.00 | J104: 0.60 | K104: 95.40 | L104: 6.00 | M104: 0.55 | N104: 0.60 | O104: 0.91 | Q104: 2 | R104: 0.99 | S104: 0.05 | T104: 0.00 | U104: 0.00 | V104: 0.00 | W104: 0.00 | X104: 0.00 | Y104: 0.01 | Z104: 0 | AA104: 0 | AB104: 0 | AC104: 0 | BQ104: 2 | BR104: 0.99 | BS104: 0.05 | BT104: 0.00 | BU104: 0.00 | BV104: 0.00 | BW104: 0.00 | BX104: 0.00 | BY104: 0.01 | BZ104: 0 | CA104: 0 | CB104: 0 | CC104: 0
A105: 3 | B105: 0.99 | C105: 94.73 | D105: 95.26 | E105: 57.16 | F105: 0.60 | G105: 94.73 | H105: 100.00 | I105: 60.00 | J105: 0.60 | K105: 95.40 | L105: 9.00 | M105: 0.55 | N105: 0.60 | O105: 0.915 | Q105: 3 | R105: 0.99 | S105: 0.05 | T105: 0.00 | U105: 0.00 | V105: 0.00 | W105: 0.00 | X105: 0.00 | Y105: 0.01 | Z105: 0 | AA105: 0 | AB105: 0 | AC105: 0 | BQ105: 3 | BR105: 0.99 | BS105: 0.05 | BT105: 0.00 | BU105: 0.00 | BV105: 0.00 | BW105: 0.00 | BX105: 0.00 | BY105: 0.01 | BZ105: 0 | CA105: 0 | CB105: 0 | CC105: 0
A106: 4 | B106: 0.99 | C106: 94.83 | D106: 95.34 | E106: 57.21 | F106: 0.60 | G106: 94.83 | H106: 100.00 | I106: 60.00 | J106: 0.60 | K106: 95.40 | L106: 12.00 | M106: 0.55 | N106: 0.60 | O106: 0.92 | Q106: 4 | R106: 0.99 | S106: 0.05 | T106: 0.00 | U106: 0.00 | V106: 0.00 | W106: 0.00 | X106: 0.00 | Y106: 0.01 | Z106: 0 | AA106: 0 | AB106: 0 | AC106: 0 | BQ106: 4 | BR106: 0.99 | BS106: 0.05 | BT106: 0.00 | BU106: 0.00 | BV106: 0.00 | BW106: 0.00 | BX106: 0.00 | BY106: 0.01 | BZ106: 0 | CA106: 0 | CB106: 0 | CC106: 0
A107: 5 | B107: 1.00 | C107: 94.92 | D107: 95.43 | E107: 57.26 | F107: 0.60 | G107: 94.92 | H107: 100.00 | I107: 60.00 | J107: 0.60 | K107: 95.40 | L107: 15.00 | M107: 0.56 | N107: 0.60 | O107: 0.925 | Q107: 5 | R107: 1.00 | S107: 0.05 | T107: 0.00 | U107: 0.00 | V107: 0.00 | W107: 0.00 | X107: 0.00 | Y107: 0.01 | Z107: 0 | AA107: 0 | AB107: 0 | AC107: 0 | BQ107: 5 | BR107: 1.00 | BS107: 0.05 | BT107: 0.00 | BU107: 0.00 | BV107: 0.00 | BW107: 0.00 | BX107: 0.00 | BY107: 0.01 | BZ107: 0 | CA107: 0 | CB107: 0 | CC107: 0
A108: 6 | B108: 1.00 | C108: 95.02 | D108: 95.52 | E108: 57.31 | F108: 0.60 | G108: 95.02 | H108: 100.00 | I108: 60.00 | J108: 0.60 | K108: 95.40 | L108: 18.00 | M108: 0.56 | N108: 0.60 | O108: 0.93 | Q108: 6 | R108: 1.00 | S108: 0.05 | T108: 0.00 | U108: 0.00 | V108: 0.00 | W108: 0.00 | X108: 0.00 | Y108: 0.02 | Z108: 0 | AA108: 0 | AB108: 0 | AC108: 0 | BQ108: 6 | BR108: 1.00 | BS108: 0.05 | BT108: 0.00 | BU108: 0.00 | BV108: 0.00 | BW108: 0.00 | BX108: 0.00 | BY108: 0.02 | BZ108: 0 | CA108: 0 | CB108: 0 | CC108: 0
A109: 7 | B109: 1.00 | C109: 95.11 | D109: 95.60 | E109: 57.36 | F109: 0.60 | G109: 95.11 | H109: 100.00 | I109: 60.00 | J109: 0.60 | K109: 95.40 | L109: 21.00 | M109: 0.56 | N109: 0.60 | O109: 0.935 | Q109: 7 | R109: 1.00 | S109: 0.05 | T109: 0.00 | U109: 0.00 | V109: 0.00 | W109: 0.00 | X109: 0.00 | Y109: 0.02 | Z109: 0 | AA109: 0 | AB109: 0 | AC109: 0 | BQ109: 7 | BR109: 1.00 | BS109: 0.05 | BT109: 0.00 | BU109: 0.00 | BV109: 0.00 | BW109: 0.00 | BX109: 0.00 | BY109: 0.02 | BZ109: 0 | CA109: 0 | CB109: 0 | CC109: 0
A110: 8 | B110: 1.00 | C110: 95.21 | D110: 95.69 | E110: 57.41 | F110: 0.60 | G110: 95.21 | H110: 100.00 | I110: 60.00 | J110: 0.60 | K110: 95.40 | L110: 24.00 | M110: 0.57 | N110: 0.60 | O110: 0.94 | Q110: 8 | R110: 1.00 | S110: 0.05 | T110: 0.00 | U110: 0.00 | V110: 0.00 | W110: 0.00 | X110: 0.00 | Y110: 0.02 | Z110: 0 | AA110: 0 | AB110: 0 | AC110: 0 | BQ110: 8 | BR110: 1.00 | BS110: 0.05 | BT110: 0.00 | BU110: 0.00 | BV110: 0.00 | BW110: 0.00 | BX110: 0.00 | BY110: 0.02 | BZ110: 0 | CA110: 0 | CB110: 0 | CC110: 0
A111: 9 | B111: =B112-$G$27 -> 1.00 | C111: 95.30 | D111: 95.77 | E111: 57.46 | F111: 0.60 | G111: 95.30 | H111: 100.00 | I111: 60.00 | J111: 0.60 | K111: 95.40 | L111: 27.00 | M111: 0.57 | N111: 0.60 | O111: 0.945 | Q111: 9 | R111: =R112-$G$27 -> 1.00 | S111: 0.05 | T111: 0.00 | U111: 0.00 | V111: 0.00 | W111: 0.00 | X111: 0.00 | Y111: 0.02 | Z111: 0 | AA111: 0 | AB111: 0 | AC111: 0 | BQ111: 9 | BR111: =BR112-$G$27 -> 1.00 | BS111: 0.05 | BT111: 0.00 | BU111: 0.00 | BV111: 0.00 | BW111: 0.00 | BX111: 0.00 | BY111: 0.02 | BZ111: 0 | CA111: 0 | CB111: 0 | CC111: 0
A112: 10 | B112: 1.00 | C112: 95.40 | D112: 95.86 | E112: 57.52 | F112: =$B$136*($B$133/C112)+$D$136 -> 0.60 | G112: 95.40 | H112: 100.00 | I112: 60.00 | J112: 0.60 | K112: 95.40 | L112: 30.00 | M112: 0.57 | N112: 0.60 | O112: 0.95 | Q112: 10 | R112: 1.00 | S112: 0.05 | T112: 0 | U112: 0 | V112: 0 | W112: 0 | X112: 0 | Y112: 0.03 | Z112: 0 | AA112: 0 | AB112: 0 | AC112: 0 | BQ112: 10 | BR112: 1.00 | BS112: 0.05 | BT112: 0 | BU112: 0 | BV112: 0 | BW112: 0 | BX112: 0 | BY112: 0.03 | BZ112: 0 | CA112: 0 | CB112: 0 | CC112: 0
A113: 11 | B113: =B112+$G$27 -> 1.00 | C113: 95.50 | D113: 95.95 | E113: 57.57 | F113: 0.60 | G113: 95.50 | H113: 100.00 | I113: 60.00 | J113: 0.60 | K113: 95.40 | L113: 33.00 | M113: 0.58 | N113: 0.60 | O113: 0.955 | Q113: 11 | R113: =R112+$G$27 -> 1.00 | S113: 0.05 | T113: (0.00) | U113: (0.00) | V113: (0.00) | W113: (0.00) | X113: (0.00) | Y113: 0.03 | Z113: 0 | AA113: 0 | AB113: 0 | AC113: 0 | BQ113: 11 | BR113: =BR112+$G$27 -> 1.00 | BS113: 0.05 | BT113: (0.00) | BU113: (0.00) | BV113: (0.00) | BW113: (0.00) | BX113: (0.00) | BY113: 0.03 | BZ113: 0 | CA113: 0 | CB113: 0 | CC113: 0
A114: 12 | B114: 1.00 | C114: 95.59 | D114: 96.03 | E114: 57.62 | F114: 0.60 | G114: 95.59 | H114: 100.00 | I114: 60.00 | J114: 0.60 | K114: 95.40 | L114: 36.00 | M114: 0.58 | N114: 0.60 | O114: 0.96 | Q114: 12 | R114: 1.00 | S114: 0.05 | T114: (0.00) | U114: (0.00) | V114: (0.00) | W114: (0.00) | X114: (0.00) | Y114: 0.03 | Z114: 0 | AA114: 0 | AB114: 0 | AC114: 0 | BQ114: 12 | BR114: 1.00 | BS114: 0.05 | BT114: (0.00) | BU114: (0.00) | BV114: (0.00) | BW114: (0.00) | BX114: (0.00) | BY114: 0.03 | BZ114: 0 | CA114: 0 | CB114: 0 | CC114: 0
A115: 13 | B115: 1.00 | C115: 95.69 | D115: 96.12 | E115: 57.67 | F115: 0.60 | G115: 95.69 | H115: 100.00 | I115: 60.00 | J115: 0.60 | K115: 95.40 | L115: 39.00 | M115: 0.58 | N115: 0.60 | O115: 0.965 | Q115: 13 | R115: 1.00 | S115: 0.05 | T115: (0.00) | U115: (0.00) | V115: (0.00) | W115: (0.00) | X115: (0.00) | Y115: 0.03 | Z115: 0 | AA115: 0 | AB115: 0 | AC115: 0 | BQ115: 13 | BR115: 1.00 | BS115: 0.05 | BT115: (0.00) | BU115: (0.00) | BV115: (0.00) | BW115: (0.00) | BX115: (0.00) | BY115: 0.03 | BZ115: 0 | CA115: 0 | CB115: 0 | CC115: 0
A116: 14 | B116: 1.00 | C116: 95.78 | D116: 96.20 | E116: 57.72 | F116: 0.60 | G116: 95.78 | H116: 100.00 | I116: 60.00 | J116: 0.60 | K116: 95.40 | L116: 42.00 | M116: 0.58 | N116: 0.60 | O116: 0.97 | Q116: 14 | R116: 1.00 | S116: 0.05 | T116: (0.00) | U116: (0.00) | V116: (0.00) | W116: (0.00) | X116: (0.00) | Y116: 0.04 | Z116: 0 | AA116: 0 | AB116: 0 | AC116: 0 | BQ116: 14 | BR116: 1.00 | BS116: 0.05 | BT116: (0.00) | BU116: (0.00) | BV116: (0.00) | BW116: (0.00) | BX116: (0.00) | BY116: 0.04 | BZ116: 0 | CA116: 0 | CB116: 0 | CC116: 0
A117: 15 | B117: 1.01 | C117: 95.88 | D117: 96.29 | E117: 57.77 | F117: 0.60 | G117: 95.88 | H117: 100.00 | I117: 60.00 | J117: 0.60 | K117: 95.40 | L117: 45.00 | M117: 0.59 | N117: 0.60 | O117: 0.975 | Q117: 15 | R117: 1.01 | S117: 0.05 | T117: (0.00) | U117: (0.00) | V117: (0.00) | W117: (0.00) | X117: (0.00) | Y117: 0.04 | Z117: 0 | AA117: 0 | AB117: 0 | AC117: 0 | BQ117: 15 | BR117: 1.01 | BS117: 0.05 | BT117: (0.00) | BU117: (0.00) | BV117: (0.00) | BW117: (0.00) | BX117: (0.00) | BY117: 0.04 | BZ117: 0 | CA117: 0 | CB117: 0 | CC117: 0
A118: 16 | B118: 1.01 | C118: 95.97 | D118: 96.38 | E118: 57.83 | F118: 0.60 | G118: 95.97 | H118: 100.00 | I118: 60.00 | J118: 0.60 | K118: 95.40 | L118: 48.00 | M118: 0.59 | N118: 0.60 | O118: 0.98 | Q118: 16 | R118: 1.01 | S118: 0.05 | T118: (0.00) | U118: (0.00) | V118: (0.00) | W118: (0.00) | X118: (0.00) | Y118: 0.04 | Z118: 0 | AA118: 0 | AB118: 0 | AC118: 0 | BQ118: 16 | BR118: 1.01 | BS118: 0.05 | BT118: (0.00) | BU118: (0.00) | BV118: (0.00) | BW118: (0.00) | BX118: (0.00) | BY118: 0.04 | BZ118: 0 | CA118: 0 | CB118: 0 | CC118: 0
A119: 17 | B119: 1.01 | C119: 96.07 | D119: 96.46 | E119: 57.88 | F119: 0.60 | G119: 96.07 | H119: 100.00 | I119: 60.00 | J119: 0.60 | K119: 95.40 | L119: 51.00 | M119: 0.59 | N119: 0.60 | O119: 0.985 | Q119: 17 | R119: 1.01 | S119: 0.05 | T119: (0.00) | U119: (0.00) | V119: (0.00) | W119: (0.00) | X119: (0.00) | Y119: 0.04 | Z119: 0 | AA119: 0 | AB119: 0 | AC119: 0 | BQ119: 17 | BR119: 1.01 | BS119: 0.05 | BT119: (0.00) | BU119: (0.00) | BV119: (0.00) | BW119: (0.00) | BX119: (0.00) | BY119: 0.04 | BZ119: 0 | CA119: 0 | CB119: 0 | CC119: 0
A120: 18 | B120: 1.01 | C120: 96.16 | D120: 96.55 | E120: 57.93 | F120: 0.60 | G120: 96.16 | H120: 100.00 | I120: 60.00 | J120: 0.60 | K120: 95.40 | L120: 54.00 | M120: 0.60 | N120: 0.60 | O120: 0.99 | Q120: 18 | R120: 1.01 | S120: 0.05 | T120: (0.00) | U120: (0.00) | V120: (0.00) | W120: (0.00) | X120: (0.00) | Y120: 0.05 | Z120: 0 | AA120: 0 | AB120: 0 | AC120: 0 | BQ120: 18 | BR120: 1.01 | BS120: 0.05 | BT120: (0.00) | BU120: (0.00) | BV120: (0.00) | BW120: (0.00) | BX120: (0.00) | BY120: 0.05 | BZ120: 0 | CA120: 0 | CB120: 0 | CC120: 0
A121: 19 | B121: 1.01 | C121: 96.26 | D121: 96.63 | E121: 57.98 | F121: 0.60 | G121: 96.26 | H121: 100.00 | I121: 60.00 | J121: 0.60 | K121: 95.40 | L121: 57.00 | M121: 0.60 | N121: 0.60 | O121: 0.995 | Q121: 19 | R121: 1.01 | S121: 0.05 | T121: (0.00) | U121: (0.00) | V121: (0.00) | W121: (0.00) | X121: (0.00) | Y121: 0.05 | Z121: 0 | AA121: 0 | AB121: 0 | AC121: 0 | BQ121: 19 | BR121: 1.01 | BS121: 0.05 | BT121: (0.00) | BU121: (0.00) | BV121: (0.00) | BW121: (0.00) | BX121: (0.00) | BY121: 0.05 | BZ121: 0 | CA121: 0 | CB121: 0 | CC121: 0
A122: 20 | B122: 1.70 | C122: 162.18 | D122: 155.96 | E122: 93.58 | F122: 0.58 | G122: 162.18 | H122: 100.00 | I122: 60.00 | J122: 0.60 | K122: 95.40 | L122: 60.00 | M122: 0.60 | N122: 0.60 | O122: 1 | Q122: 20 | R122: 1.70 | S122: 0.09 | T122: (0.04) | U122: (0.04) | V122: (0.04) | W122: (0.04) | X122: (0.04) | Y122: 0.05 | Z122: 0 | AA122: 0 | AB122: 0 | AC122: 0 | BQ122: 20 | BR122: 1.70 | BS122: 0.09 | BT122: (0.04) | BU122: (0.04) | BV122: (0.04) | BW122: (0.04) | BX122: (0.04) | BY122: 0.05 | BZ122: 0 | CA122: 0 | CB122: 0 | CC122: 0
O123: =(O122-O102)/20 -> 0.005
BQ125: CURVA DE PHILLIPS CORTO PLAZO 1
BQ126: p-1 | BR126: p-2 | BS126: Pe-2 | BT126: p-1 | BU126: p-2 | BV126: Pe-2 | BW126: Desviación del error
V127: CURVA DE PHILLIPS DE LARGO PLAZO | X127: 2 | Y127: 2 | Z127: 2 | AA127: 2 | AB127: 2 | AC127: 2 | AD127: 3 | AE127: 3 | AF127: 3 | AG127: 3 | AH127: 3 | AI127: 3 | AJ127: 4 | AK127: 4 | AL127: 4 | AM127: 4 | AN127: 4 | AO127: 4 | AP127: 5 | AQ127: 5 | AR127: 5 | AS127: 5 | AT127: 5 | AU127: 5 | AV127: u | AW127: u | BD127: CURVA DE PHILLIPS DE LARGO PLAZO | BF127: 2 | BG127: 2 | BH127: 2 | BI127: 2 | BJ127: 2 | BK127: 2 | BP127: 0 | BQ127: =BR127+($BS$146*(BR127-BS127)) -> 1.16% | BR127: 1.00% | BS127: 0.80% | BT127: =BU127+($BS$147*(BU127-BV127)) -> 1.20% | BU127: 1.00% | BV127: 0.80% | BW127: =BT127-BQ127 -> 0.04% | CF127: 3 | CG127: 3 | CH127: 3 | CI127: 3 | CJ127: 4 | CK127: 4 | CL127: 4 | CM127: 4 | CN127: 4 | CO127: 4 | CP127: 5 | CQ127: 5 | CR127: 5 | CS127: 5 | CT127: 5 | CU127: 5 | CV127: u | CW127: u
A128: FUNCION CONSUMO TOTAL | Q128: CURVA DE PHILLIPS CORTO PLAZO 1 | V128: Unidades | W128: ponderador | X128: U | Y128: P | Z128: LMLine | AD128: U | AE128: P | AF128: LMLine | AJ128: U | AK128: P | AL128: LMLine | AP128: U | AQ128: P | AR128: LMLine | AV128: LMLine | AX128: LMLine | AZ128: LMLine | BD128: Unidades | BE128: ponderador | BF128: AÑOS | BG128: RR DESCONTADA | BH128: RR SIN | BI128: RR DESCONTADA | BJ128: RR SIN | BP128: 1 | BQ128: 1.29% | BR128: =BQ127 -> 1.16% | BS128: 1.00% | BT128: 1.40% | BU128: =BT127 -> 1.20% | BV128: 1.00% | BW128: =BT128-BQ128 -> 0.11% | CF128: LMLine | CJ128: U | CK128: P | CL128: LMLine | CP128: U | CQ128: P | CR128: LMLine | CV128: LMLine | CX128: LMLine | CZ128: LMLine
A129: C | B129: k | C129: YP | Q129: P | R129: p0 | S129: -p1 | T129: U | V129: 0 | W129: =W130-$W$151 -> 0.00 | X129: =($R$159-Y129)/(-$S$159) -> 0.05 | Y129: =$Q159 -> 0 | Z129: =X$149 -> 0.05 | AA129: =Y$149*$V129 -> 0 | AB129: =X$149*$V129 -> 0 | AC129: =Y$149 -> 0 | AD129: =($R$162-AE129)/(-$S$162) -> 0.05 | AE129: =$Q162 -> 0 | AF129: =AD$149 -> 0.05 | AG129: =AE$149*$V129 -> 0 | AH129: =AD$149*$V129 -> 0 | AI129: =AE$149 -> 0 | AJ129: =($R$165-AK129)/(-$S$165) -> 0.05 | AK129: =$Q165 -> 0 | AL129: =AJ$149 -> 0.05 | AM129: =AK$149*$V129 -> 0 | AN129: =AJ$149*$V129 -> 0 | AO129: =AK$149 -> 0 | AP129: =($R$172-AQ129)/(-$S$172) -> 0.05 | AQ129: =$Q172 -> 0 | AR129: =AP$149 -> 0.05 | AS129: =AQ$149*$V129 -> 0 | AT129: =AP$149*$V129 -> 0 | AU129: =AQ$149 -> 0 | AV129: =$T$130 -> 0.05 | AW129: =(MAX($Y$149,$AE$149,$AK$149,$AQ$149))*$V129 -> 0 | AX129: =$T$130 -> 0.05 | AY129: =(MAX($Q$159,$Q$162,$Q$165,$Q$172,$Q$175))*1.2*$V129 -> 0 | AZ129: 0 | BA129: 0 | BD129: 0 | BE129: =BE130-$W$151 -> 0.00 | BF129: 0 | BG129: =(1+($BD$160))^(BF129) -> 1.0000 | BH129: =(1+($BD$163))^(BF129) -> 1.0000 | BI129: =BG129-1 -> 0% | BJ129: =BH129-1 -> 0% | BK129: =BG$149 -> 1.18 | BP129: 2 | BQ129: 1.39% | BR129: 1.29% | BS129: 1.16% | BT129: 1.60% | BU129: 1.40% | BV129: 1.20% | BW129: 0.21% | CF129: =CD$149 -> 0 | CG129: =CE$149*$V129 -> 0 | CH129: =CD$149*$V129 -> 0 | CI129: =CE$149 -> 0 | CJ129: =($R$165-CK129)/(-$S$165) -> 0.05 | CK129: =$Q165 -> 0 | CL129: =CJ$149 -> 0.05 | CM129: =CK$149*$V129 -> 0 | CN129: =CJ$149*$V129 -> 0 | CO129: =CK$149 -> 0 | CP129: =($R$172-CQ129)/(-$S$172) -> 0.05 | CQ129: =$Q172 -> 0 | CR129: =CP$149 -> 0.05 | CS129: =CQ$149*$V129 -> 0 | CT129: =CP$149*$V129 -> 0 | CU129: =CQ$149 -> 0 | CV129: =$T$130 -> 0.05 | CW129: =(MAX($Y$149,$AE$149,$AK$149,$AQ$149))*$V129 -> 0 | CX129: =$T$130 -> 0.05 | CY129: =(MAX($Q$159,$Q$162,$Q$165,$Q$172,$Q$175))*1.2*$V129 -> 0 | CZ129: 0 | DA129: 0
A130: =B130*C130 -> 57.52 | B130: ='consumo medio'!C6 -> 0.6 | C130: =A133 -> 95.86 | Q130: =R130+(S130*T130) -> 0% | R130: =curvap!C9 -> 5% | S130: =curvap!D9 -> (1.00) | T130: =curvap!E9 -> 5% | V130: 0.05 | W130: 0.10 | X130: =($R$159-Y130)/(-$S$159) -> 0.05 | Y130: =Y129+$Y$151 -> 0 | Z130: =X$149 -> 0.05 | AA130: =Y$149*$V130 -> 0 | AB130: =X$149*$V130 -> 0.00 | AC130: =Y$149 -> 0 | AD130: =($R$162-AE130)/(-$S$162) -> 0.05 | AE130: =AE129+$AE$151 -> 0 | AF130: =AD$149 -> 0.05 | AG130: =AE$149*$V130 -> 0 | AH130: =AD$149*$V130 -> 0.00 | AI130: =AE$149 -> 0 | AJ130: =($R$165-AK130)/(-$S$165) -> 0.05 | AK130: =AK129+$AK$151 -> 0 | AL130: =AJ$149 -> 0.05 | AM130: =AK$149*$V130 -> 0 | AN130: =AJ$149*$V130 -> 0.00 | AO130: =AK$149 -> 0 | AP130: =($R$172-AQ130)/(-$S$172) -> 0.05 | AQ130: =AQ129+$AQ$151 -> 0 | AR130: =AP$149 -> 0.05 | AS130: =AQ$149*$V130 -> 0 | AT130: =AP$149*$V130 -> 0.00 | AU130: =AQ$149 -> 0 | AV130: 0.05 | AW130: 0 | AX130: 0.05 | AY130: 0 | AZ130: =AZ129 -> 0 | BA130: 0 | BD130: 0.05 | BE130: 0.10 | BF130: 1.00 | BG130: =(1+($BD$160))^(BF130) -> 1.0084 | BH130: =(1+($BD$163))^(BF130) -> 1.0100 | BI130: =BG130-1 -> 1% | BJ130: =BH130-1 -> 1% | BK130: =BG$149 -> 1.18 | BP130: 3 | BQ130: 1.47% | BR130: 1.39% | BS130: 1.29% | BT130: 1.80% | BU130: 1.60% | BV130: 1.40% | BW130: 0.33% | CF130: =CD$149 -> 0 | CG130: =CE$149*$V130 -> 0 | CH130: =CD$149*$V130 -> 0 | CI130: =CE$149 -> 0 | CJ130: =($R$165-CK130)/(-$S$165) -> 0.05 | CK130: =CK129+$AK$151 -> 0 | CL130: =CJ$149 -> 0.05 | CM130: =CK$149*$V130 -> 0 | CN130: =CJ$149*$V130 -> 0.00 | CO130: =CK$149 -> 0 | CP130: =($R$172-CQ130)/(-$S$172) -> 0.05 | CQ130: =CQ129+$AQ$151 -> 0 | CR130: =CP$149 -> 0.05 | CS130: =CQ$149*$V130 -> 0 | CT130: =CP$149*$V130 -> 0.00 | CU130: =CQ$149 -> 0 | CV130: 0.05 | CW130: 0 | CX130: 0.05 | CY130: 0 | CZ130: =CZ129 -> 0 | DA130: 0
A131: FUNCION INGRESO PERMANENTE | Q131: CURVA DE PHILLIPS CORTO PLAZO 2 | V131: 0.1 | W131: 0.20 | X131: 0.05 | Y131: =Y130+$Y$151 -> 0 | Z131: 0.05 | AA131: 0 | AB131: 0.01 | AC131: 0 | AD131: 0.05 | AE131: =AE130+$AE$151 -> 0 | AF131: 0.05 | AG131: 0 | AH131: 0.01 | AI131: 0 | AJ131: 0.05 | AK131: =AK130+$AK$151 -> 0 | AL131: 0.05 | AM131: 0 | AN131: 0.01 | AO131: 0 | AP131: 0.05 | AQ131: =AQ130+$AQ$151 -> 0 | AR131: 0.05 | AS131: 0 | AT131: 0.01 | AU131: 0 | AV131: 0.05 | AW131: 0 | AX131: 0.05 | AY131: 0 | AZ131: =AZ130 -> 0 | BA131: 0 | BD131: 0.1 | BE131: 0.20 | BF131: 2.00 | BG131: 1.0169 | BH131: 1.0201 | BI131: 2% | BJ131: 2% | BK131: 1.18 | BP131: 4 | BQ131: 1.54% | BR131: 1.47% | BS131: 1.39% | BT131: 2.00% | BU131: 1.80% | BV131: 1.60% | BW131: 0.46% | CF131: 0 | CG131: 0 | CH131: 0 | CI131: 0 | CJ131: 0.05 | CK131: =CK130+$AK$151 -> 0 | CL131: 0.05 | CM131: 0 | CN131: 0.01 | CO131: 0 | CP131: 0.05 | CQ131: =CQ130+$AQ$151 -> 0 | CR131: 0.05 | CS131: 0 | CT131: 0.01 | CU131: 0 | CV131: 0.05 | CW131: 0 | CX131: 0.05 | CY131: 0 | CZ131: =CZ130 -> 0 | DA131: 0
A132: YP | B132: YPt-1 | C132: j | D132: Yt-0 | E132: YPt-1 | Q132: P | R132: p0 | S132: -p1 | T132: U | V132: 0.15 | W132: 0.30 | X132: 0.05 | Y132: 0 | Z132: 0.05 | AA132: 0 | AB132: 0.01 | AC132: 0 | AD132: 0.05 | AE132: 0 | AF132: 0.05 | AG132: 0 | AH132: 0.01 | AI132: 0 | AJ132: 0.05 | AK132: 0 | AL132: 0.05 | AM132: 0 | AN132: 0.01 | AO132: 0 | AP132: 0.05 | AQ132: 0 | AR132: 0.05 | AS132: 0 | AT132: 0.01 | AU132: 0 | AV132: 0.05 | AW132: 0 | AX132: 0.05 | AY132: 0 | AZ132: 0 | BA132: 0 | BD132: 0.15 | BE132: 0.30 | BF132: 3.00 | BG132: 1.0254 | BH132: 1.0303 | BI132: 3% | BJ132: 3% | BK132: 1.18 | BP132: 5 | BQ132: 1.59% | BR132: 1.54% | BS132: 1.47% | BT132: 2.20% | BU132: 2.00% | BV132: 1.80% | BW132: 0.61% | CF132: 0 | CG132: 0 | CH132: 0 | CI132: 0 | CJ132: 0.05 | CK132: 0 | CL132: 0.05 | CM132: 0 | CN132: 0.01 | CO132: 0 | CP132: 0.05 | CQ132: 0 | CR132: 0.05 | CS132: 0 | CT132: 0.01 | CU132: 0 | CV132: 0.05 | CW132: 0 | CX132: 0.05 | CY132: 0 | CZ132: 0 | DA132: 0
A133: =B133+(C133*(D133-E133)) -> 95.86 | B133: ='consumo medio'!C10 -> 100 | C133: ='consumo medio'!D10 -> 0.9 | D133: =(RANDBETWEEN(1,((D187*0.2)*2))+(D187-(D187*0.2))) -> 95.40 | E133: =B133 -> 100 | Q133: =R133+(S133*T133) -> 0% | R133: =R130+S148 -> 5% | S133: =S130 -> (1.00) | T133: =T130 -> 5% | V133: 0.2 | W133: 0.40 | X133: 0.05 | Y133: 0 | Z133: 0.05 | AA133: 0 | AB133: 0.01 | AC133: 0 | AD133: 0.05 | AE133: 0 | AF133: 0.05 | AG133: 0 | AH133: 0.01 | AI133: 0 | AJ133: 0.05 | AK133: 0 | AL133: 0.05 | AM133: 0 | AN133: 0.01 | AO133: 0 | AP133: 0.05 | AQ133: 0 | AR133: 0.05 | AS133: 0 | AT133: 0.01 | AU133: 0 | AV133: 0.05 | AW133: 0 | AX133: 0.05 | AY133: 0 | AZ133: 0 | BA133: 0 | BD133: 0.2 | BE133: 0.40 | BF133: 4.00 | BG133: 1.0340 | BH133: 1.0406 | BI133: 3% | BJ133: 4% | BK133: 1.18 | BP133: 6 | BQ133: 1.63% | BR133: =BQ132 -> 1.59% | BS133: 1.54% | BT133: 2.40% | BU133: 2.20% | BV133: 2.00% | BW133: 0.77% | CF133: 0 | CG133: 0 | CH133: 0 | CI133: 0 | CJ133: 0.05 | CK133: 0 | CL133: 0.05 | CM133: 0 | CN133: 0.01 | CO133: 0 | CP133: 0.05 | CQ133: 0 | CR133: 0.05 | CS133: 0 | CT133: 0.01 | CU133: 0 | CV133: 0.05 | CW133: 0 | CX133: 0.05 | CY133: 0 | CZ133: 0 | DA133: 0
A134: FUNCION CONSUMO MEDIO | Q134: CURVA DE PHILLIPS CORTO PLAZO 3 | V134: 0.25 | W134: 0.50 | X134: 0.05 | Y134: 0 | Z134: 0.05 | AA134: 0 | AB134: 0.01 | AC134: 0 | AD134: 0.05 | AE134: 0 | AF134: 0.05 | AG134: 0 | AH134: 0.01 | AI134: 0 | AJ134: 0.05 | AK134: 0 | AL134: 0.05 | AM134: 0 | AN134: 0.01 | AO134: 0 | AP134: 0.05 | AQ134: 0 | AR134: 0.05 | AS134: 0 | AT134: 0.01 | AU134: 0 | AV134: 0.05 | AW134: 0 | AX134: 0.05 | AY134: 0 | AZ134: 0 | BA134: 0 | BD134: 0.25 | BE134: 0.50 | BF134: 5.00 | BG134: 1.0427 | BH134: 1.0510 | BI134: 4% | BJ134: 5% | BK134: 1.18 | BP134: 7 | BQ134: 1.67% | BR134: 1.63% | BS134: 1.59% | BT134: 2.60% | BU134: 2.40% | BV134: 2.20% | BW134: 0.93% | CF134: 0 | CG134: 0 | CH134: 0 | CI134: 0 | CJ134: 0.05 | CK134: 0 | CL134: 0.05 | CM134: 0 | CN134: 0.01 | CO134: 0 | CP134: 0.05 | CQ134: 0 | CR134: 0.05 | CS134: 0 | CT134: 0.01 | CU134: 0 | CV134: 0.05 | CW134: 0 | CX134: 0.05 | CY134: 0 | CZ134: 0 | DA134: 0
A135: C/Y | B135: k(1-j) | C135: YPt-1/Yt-0 | D135: kj | Q135: P | R135: p0 | S135: -p1 | T135: U | V135: 0.3 | W135: 0.60 | X135: 0.05 | Y135: 0 | Z135: 0.05 | AA135: 0 | AB135: 0.02 | AC135: 0 | AD135: 0.05 | AE135: 0 | AF135: 0.05 | AG135: 0 | AH135: 0.02 | AI135: 0 | AJ135: 0.05 | AK135: 0 | AL135: 0.05 | AM135: 0 | AN135: 0.02 | AO135: 0 | AP135: 0.05 | AQ135: 0 | AR135: 0.05 | AS135: 0 | AT135: 0.02 | AU135: 0 | AV135: 0.05 | AW135: 0 | AX135: 0.05 | AY135: 0 | AZ135: 0 | BA135: 0 | BD135: 0.3 | BE135: 0.60 | BF135: 6.00 | BG135: 1.0515 | BH135: 1.0615 | BI135: 5% | BJ135: 6% | BK135: 1.18 | BP135: 8 | BQ135: 1.69% | BR135: 1.67% | BS135: 1.63% | BT135: 2.80% | BU135: 2.60% | BV135: 2.40% | BW135: 1.11% | CF135: 0 | CG135: 0 | CH135: 0 | CI135: 0 | CJ135: 0.05 | CK135: 0 | CL135: 0.05 | CM135: 0 | CN135: 0.02 | CO135: 0 | CP135: 0.05 | CQ135: 0 | CR135: 0.05 | CS135: 0 | CT135: 0.02 | CU135: 0 | CV135: 0.05 | CW135: 0 | CX135: 0.05 | CY135: 0 | CZ135: 0 | DA135: 0
A136: =B136*C136+D136 -> 0.60 | B136: =B130*(1-C133) -> 0.06 | C136: =E133/D133 -> 1.05 | D136: =B130*C133 -> 0.54 | Q136: =R136+(S136*T136) -> 0% | R136: =R133+S149 -> 5% | S136: =S133 -> (1.00) | T136: =T133 -> 5% | V136: 0.35 | W136: 0.70 | X136: 0.05 | Y136: 0 | Z136: 0.05 | AA136: 0 | AB136: 0.02 | AC136: 0 | AD136: 0.05 | AE136: 0 | AF136: 0.05 | AG136: 0 | AH136: 0.02 | AI136: 0 | AJ136: 0.05 | AK136: 0 | AL136: 0.05 | AM136: 0 | AN136: 0.02 | AO136: 0 | AP136: 0.05 | AQ136: 0 | AR136: 0.05 | AS136: 0 | AT136: 0.02 | AU136: 0 | AV136: 0.05 | AW136: 0 | AX136: 0.05 | AY136: 0 | AZ136: 0 | BA136: 0 | BD136: 0.35 | BE136: 0.70 | BF136: 7.00 | BG136: 1.0603 | BH136: 1.0721 | BI136: 6% | BJ136: 7% | BK136: 1.18 | BP136: 9 | BQ136: 1.71% | BR136: 1.69% | BS136: 1.67% | BT136: 3.00% | BU136: 2.80% | BV136: 2.60% | BW136: 1.29% | CF136: 0 | CG136: 0 | CH136: 0 | CI136: 0 | CJ136: 0.05 | CK136: 0 | CL136: 0.05 | CM136: 0 | CN136: 0.02 | CO136: 0 | CP136: 0.05 | CQ136: 0 | CR136: 0.05 | CS136: 0 | CT136: 0.02 | CU136: 0 | CV136: 0.05 | CW136: 0 | CX136: 0.05 | CY136: 0 | CZ136: 0 | DA136: 0
A137: CAMBIO DE INGRESO | Q137: CURVA DE PHILLIPS CORTO PLAZO 4 | V137: 0.4 | W137: 0.80 | X137: 0.05 | Y137: 0 | Z137: 0.05 | AA137: 0 | AB137: 0.02 | AC137: 0 | AD137: 0.05 | AE137: 0 | AF137: 0.05 | AG137: 0 | AH137: 0.02 | AI137: 0 | AJ137: 0.05 | AK137: 0 | AL137: 0.05 | AM137: 0 | AN137: 0.02 | AO137: 0 | AP137: 0.05 | AQ137: 0 | AR137: 0.05 | AS137: 0 | AT137: 0.02 | AU137: 0 | AV137: 0.05 | AW137: 0 | AX137: 0.05 | AY137: 0 | AZ137: 0 | BA137: 0 | BD137: 0.4 | BE137: 0.80 | BF137: 8.00 | BG137: 1.0692 | BH137: 1.0829 | BI137: 7% | BJ137: 8% | BK137: 1.18 | BP137: 10 | BQ137: 1.73% | BR137: 1.71% | BS137: 1.69% | BT137: 3.20% | BU137: 3.00% | BV137: 2.80% | BW137: 1.47% | CF137: 0 | CG137: 0 | CH137: 0 | CI137: 0 | CJ137: 0.05 | CK137: 0 | CL137: 0.05 | CM137: 0 | CN137: 0.02 | CO137: 0 | CP137: 0.05 | CQ137: 0 | CR137: 0.05 | CS137: 0 | CT137: 0.02 | CU137: 0 | CV137: 0.05 | CW137: 0 | CX137: 0.05 | CY137: 0 | CZ137: 0 | DA137: 0
A138: Yt-0 | B138: Yt-0 | Q138: P | R138: p0 | S138: -p1 | T138: U | V138: 0.45 | W138: =W139-$W$151 -> 0.90 | X138: 0.05 | Y138: 0 | Z138: 0.05 | AA138: 0 | AB138: 0.02 | AC138: 0 | AD138: 0.05 | AE138: 0 | AF138: 0.05 | AG138: 0 | AH138: 0.02 | AI138: 0 | AJ138: 0.05 | AK138: 0 | AL138: 0.05 | AM138: 0 | AN138: 0.02 | AO138: 0 | AP138: 0.05 | AQ138: 0 | AR138: 0.05 | AS138: 0 | AT138: 0.02 | AU138: 0 | AV138: 0.05 | AW138: 0 | AX138: 0.05 | AY138: 0 | AZ138: 0 | BA138: 0 | BD138: 0.45 | BE138: =BE139-$W$151 -> 0.90 | BF138: 9.00 | BG138: 1.0782 | BH138: 1.0937 | BI138: 8% | BJ138: 9% | BK138: 1.18 | BP138: 11 | BQ138: 1.75% | BR138: 1.73% | BS138: 1.71% | BT138: 3.40% | BU138: 3.20% | BV138: 3.00% | BW138: 1.65% | CF138: 0 | CG138: 0 | CH138: 0 | CI138: 0 | CJ138: 0.05 | CK138: 0 | CL138: 0.05 | CM138: 0 | CN138: 0.02 | CO138: 0 | CP138: 0.05 | CQ138: 0 | CR138: 0.05 | CS138: 0 | CT138: 0.02 | CU138: 0 | CV138: 0.05 | CW138: 0 | CX138: 0.05 | CY138: 0 | CZ138: 0 | DA138: 0
A139: =B139 -> 0.00 | B139: ='consumo medio'!C20 -> 0 | D139: ='consumo medio'!D20 -> 103.86 | Q139: =R139+(S139*T139) -> 0% | R139: =R136+S150 -> 5% | S139: =S136 -> (1.00) | T139: =T136 -> 5% | V139: 0.5 | W139: 1.00 | X139: 0.05 | Y139: 0 | Z139: 0.05 | AA139: 0 | AB139: 0.03 | AC139: 0 | AD139: 0.05 | AE139: 0 | AF139: 0.05 | AG139: 0 | AH139: 0.03 | AI139: 0 | AJ139: 0.05 | AK139: 0 | AL139: 0.05 | AM139: 0 | AN139: 0.03 | AO139: 0 | AP139: 0.05 | AQ139: 0 | AR139: 0.05 | AS139: 0 | AT139: 0.03 | AU139: 0 | AV139: 0.05 | AW139: 0 | AX139: 0.05 | AY139: 0 | AZ139: 0 | BA139: 0 | BD139: 0.5 | BE139: 1.00 | BF139: 10.00 | BG139: 1.0873 | BH139: 1.1046 | BI139: 9% | BJ139: 10% | BK139: 1.18 | BP139: 12 | BQ139: 1.76% | BR139: 1.75% | BS139: 1.73% | BT139: 3.60% | BU139: 3.40% | BV139: 3.20% | BW139: 1.84% | CF139: 0 | CG139: 0 | CH139: 0 | CI139: 0 | CJ139: 0.05 | CK139: 0 | CL139: 0.05 | CM139: 0 | CN139: 0.03 | CO139: 0 | CP139: 0.05 | CQ139: 0 | CR139: 0.05 | CS139: 0 | CT139: 0.03 | CU139: 0 | CV139: 0.05 | CW139: 0 | CX139: 0.05 | CY139: 0 | CZ139: 0 | DA139: 0
D140: =(RANDBETWEEN(1,40))+B133 -> 107 | Q140: CURVA DE PHILLIPS CORTO PLAZO 5 | V140: 0.55 | W140: =W139+$W$151 -> 1.10 | X140: 0.05 | Y140: 0 | Z140: 0.05 | AA140: 0 | AB140: 0.03 | AC140: 0 | AD140: 0.05 | AE140: 0 | AF140: 0.05 | AG140: 0 | AH140: 0.03 | AI140: 0 | AJ140: 0.05 | AK140: 0 | AL140: 0.05 | AM140: 0 | AN140: 0.03 | AO140: 0 | AP140: 0.05 | AQ140: 0 | AR140: 0.05 | AS140: 0 | AT140: 0.03 | AU140: 0 | AV140: 0.05 | AW140: 0 | AX140: 0.05 | AY140: 0 | AZ140: 0 | BA140: 0 | BD140: 0.55 | BE140: =BE139+$W$151 -> 1.10 | BF140: 11.00 | BG140: 1.0964 | BH140: 1.1157 | BI140: 10% | BJ140: 12% | BK140: 1.18 | BP140: 13 | BQ140: 1.76% | BR140: 1.76% | BS140: 1.75% | BT140: 3.80% | BU140: 3.60% | BV140: 3.40% | BW140: 2.04% | CF140: 0 | CG140: 0 | CH140: 0 | CI140: 0 | CJ140: 0.05 | CK140: 0 | CL140: 0.05 | CM140: 0 | CN140: 0.03 | CO140: 0 | CP140: 0.05 | CQ140: 0 | CR140: 0.05 | CS140: 0 | CT140: 0.03 | CU140: 0 | CV140: 0.05 | CW140: 0 | CX140: 0.05 | CY140: 0 | CZ140: 0 | DA140: 0
D141: =(RANDBETWEEN(1,40))+B133 -> 118 | Q141: P | R141: p0 | S141: -p1 | T141: U | V141: 0.6 | W141: =W140+$W$151 -> 1.20 | X141: 0.05 | Y141: 0 | Z141: 0.05 | AA141: 0 | AB141: 0.03 | AC141: 0 | AD141: 0.05 | AE141: 0 | AF141: 0.05 | AG141: 0 | AH141: 0.03 | AI141: 0 | AJ141: 0.05 | AK141: 0 | AL141: 0.05 | AM141: 0 | AN141: 0.03 | AO141: 0 | AP141: 0.05 | AQ141: 0 | AR141: 0.05 | AS141: 0 | AT141: 0.03 | AU141: 0 | AV141: 0.05 | AW141: 0 | AX141: 0.05 | AY141: 0 | AZ141: 0 | BA141: 0 | BD141: 0.6 | BE141: =BE140+$W$151 -> 1.20 | BF141: 12.00 | BG141: 1.1056 | BH141: 1.1268 | BI141: 11% | BJ141: 13% | BK141: 1.18 | BP141: 14 | BQ141: 1.77% | BR141: 1.76% | BS141: 1.76% | BT141: 4.00% | BU141: 3.80% | BV141: 3.60% | BW141: 2.23% | CF141: 0 | CG141: 0 | CH141: 0 | CI141: 0 | CJ141: 0.05 | CK141: 0 | CL141: 0.05 | CM141: 0 | CN141: 0.03 | CO141: 0 | CP141: 0.05 | CQ141: 0 | CR141: 0.05 | CS141: 0 | CT141: 0.03 | CU141: 0 | CV141: 0.05 | CW141: 0 | CX141: 0.05 | CY141: 0 | CZ141: 0 | DA141: 0
D142: =(RANDBETWEEN(1,40))+(B133-((RANDBETWEEN(1,40)/1.5))) -> 117.6666667 | Q142: =R142+(S142*T142) -> 0% | R142: =R139+S151 -> 5% | S142: =S139 -> (1.00) | T142: =T139 -> 5% | V142: 0.65 | W142: =W141+$W$151 -> 1.30 | X142: 0.05 | Y142: 0 | Z142: 0.05 | AA142: 0 | AB142: 0.03 | AC142: 0 | AD142: 0.05 | AE142: 0 | AF142: 0.05 | AG142: 0 | AH142: 0.03 | AI142: 0 | AJ142: 0.05 | AK142: 0 | AL142: 0.05 | AM142: 0 | AN142: 0.03 | AO142: 0 | AP142: 0.05 | AQ142: 0 | AR142: 0.05 | AS142: 0 | AT142: 0.03 | AU142: 0 | AV142: 0.05 | AW142: 0 | AX142: 0.05 | AY142: 0 | AZ142: 0 | BA142: 0 | BD142: 0.65 | BE142: =BE141+$W$151 -> 1.30 | BF142: 13.00 | BG142: 1.1149 | BH142: 1.1381 | BI142: 11% | BJ142: 14% | BK142: 1.18 | BP142: 15 | BQ142: 1.78% | BR142: 1.77% | BS142: 1.76% | BT142: 4.20% | BU142: 4.00% | BV142: 3.80% | BW142: 2.42% | CF142: 0 | CG142: 0 | CH142: 0 | CI142: 0 | CJ142: 0.05 | CK142: 0 | CL142: 0.05 | CM142: 0 | CN142: 0.03 | CO142: 0 | CP142: 0.05 | CQ142: 0 | CR142: 0.05 | CS142: 0 | CT142: 0.03 | CU142: 0 | CV142: 0.05 | CW142: 0 | CX142: 0.05 | CY142: 0 | CZ142: 0 | DA142: 0
Q143: OFERTA DE DINERO | V143: 0.7 | W143: 1.40 | X143: 0.05 | Y143: 0 | Z143: 0.05 | AA143: 0 | AB143: 0.04 | AC143: 0 | AD143: 0.05 | AE143: 0 | AF143: 0.05 | AG143: 0 | AH143: 0.04 | AI143: 0 | AJ143: 0.05 | AK143: 0 | AL143: 0.05 | AM143: 0 | AN143: 0.04 | AO143: 0 | AP143: 0.05 | AQ143: 0 | AR143: 0.05 | AS143: 0 | AT143: 0.04 | AU143: 0 | AV143: 0.05 | AW143: 0 | AX143: 0.05 | AY143: 0 | AZ143: 0 | BA143: 0 | BD143: 0.7 | BE143: 1.40 | BF143: 14.00 | BG143: 1.1243 | BH143: 1.1495 | BI143: 12% | BJ143: 15% | BK143: 1.18 | BP143: 16 | BQ143: 1.78% | BR143: 1.78% | BS143: 1.77% | BT143: 4.40% | BU143: 4.20% | BV143: 4.00% | BW143: 2.62% | CF143: 0 | CG143: 0 | CH143: 0 | CI143: 0 | CJ143: 0.05 | CK143: 0 | CL143: 0.05 | CM143: 0 | CN143: 0.04 | CO143: 0 | CP143: 0.05 | CQ143: 0 | CR143: 0.05 | CS143: 0 | CT143: 0.04 | CU143: 0 | CV143: 0.05 | CW143: 0 | CX143: 0.05 | CY143: 0 | CZ143: 0 | DA143: 0
V144: 0.75 | W144: 1.50 | X144: 0.05 | Y144: 0 | Z144: 0.05 | AA144: 0 | AB144: 0.04 | AC144: 0 | AD144: 0.05 | AE144: 0 | AF144: 0.05 | AG144: 0 | AH144: 0.04 | AI144: 0 | AJ144: 0.05 | AK144: 0 | AL144: 0.05 | AM144: 0 | AN144: 0.04 | AO144: 0 | AP144: 0.05 | AQ144: 0 | AR144: 0.05 | AS144: 0 | AT144: 0.04 | AU144: 0 | AV144: 0.05 | AW144: 0 | AX144: 0.05 | AY144: 0 | AZ144: 0 | BA144: 0 | BD144: 0.75 | BE144: 1.50 | BF144: 15.00 | BG144: 1.1337 | BH144: 1.1610 | BI144: 13% | BJ144: 16% | BK144: 1.18 | CF144: 0 | CG144: 0 | CH144: 0 | CI144: 0 | CJ144: 0.05 | CK144: 0 | CL144: 0.05 | CM144: 0 | CN144: 0.04 | CO144: 0 | CP144: 0.05 | CQ144: 0 | CR144: 0.05 | CS144: 0 | CT144: 0.04 | CU144: 0 | CV144: 0.05 | CW144: 0 | CX144: 0.05 | CY144: 0 | CZ144: 0 | DA144: 0
Q145: POLÍTICA MONETARIA (VARIACIÓN PORCENTUAL) | V145: 0.8 | W145: 1.60 | X145: 0.05 | Y145: 0 | Z145: 0.05 | AA145: 0 | AB145: 0.04 | AC145: 0 | AD145: 0.05 | AE145: 0 | AF145: 0.05 | AG145: 0 | AH145: 0.04 | AI145: 0 | AJ145: 0.05 | AK145: 0 | AL145: 0.05 | AM145: 0 | AN145: 0.04 | AO145: 0 | AP145: 0.05 | AQ145: 0 | AR145: 0.05 | AS145: 0 | AT145: 0.04 | AU145: 0 | AV145: 0.05 | AW145: 0 | AX145: 0.05 | AY145: 0 | AZ145: 0 | BA145: 0 | BD145: 0.8 | BE145: 1.60 | BF145: 16.00 | BG145: 1.1433 | BH145: 1.1726 | BI145: 14% | BJ145: 17% | BK145: 1.18 | CF145: 0 | CG145: 0 | CH145: 0 | CI145: 0 | CJ145: 0.05 | CK145: 0 | CL145: 0.05 | CM145: 0 | CN145: 0.04 | CO145: 0 | CP145: 0.05 | CQ145: 0 | CR145: 0.05 | CS145: 0 | CT145: 0.04 | CU145: 0 | CV145: 0.05 | CW145: 0 | CX145: 0.05 | CY145: 0 | CZ145: 0 | DA145: 0
R146: Ms | S146: Ms | V146: 0.85 | W146: 1.70 | X146: 0.05 | Y146: 0 | Z146: 0.05 | AA146: 0 | AB146: 0.04 | AC146: 0 | AD146: 0.05 | AE146: 0 | AF146: 0.05 | AG146: 0 | AH146: 0.04 | AI146: 0 | AJ146: 0.05 | AK146: 0 | AL146: 0.05 | AM146: 0 | AN146: 0.04 | AO146: 0 | AP146: 0.05 | AQ146: 0 | AR146: 0.05 | AS146: 0 | AT146: 0.04 | AU146: 0 | AV146: 0.05 | AW146: 0 | AX146: 0.05 | AY146: 0 | AZ146: 0 | BA146: 0 | BD146: 0.85 | BE146: 1.70 | BF146: 17.00 | BG146: 1.1529 | BH146: 1.1843 | BI146: 15% | BJ146: 18% | BK146: 1.18 | BR146: j | BS146: 0.80 | CF146: 0 | CG146: 0 | CH146: 0 | CI146: 0 | CJ146: 0.05 | CK146: 0 | CL146: 0.05 | CM146: 0 | CN146: 0.04 | CO146: 0 | CP146: 0.05 | CQ146: 0 | CR146: 0.05 | CS146: 0 | CT146: 0.04 | CU146: 0 | CV146: 0.05 | CW146: 0 | CX146: 0.05 | CY146: 0 | CZ146: 0 | DA146: 0
Q147: Periodo 1 | R147: 0% | S147: 0% | V147: 0.9 | W147: 1.80 | X147: 0.05 | Y147: 0 | Z147: 0.05 | AA147: 0 | AB147: 0.05 | AC147: 0 | AD147: 0.05 | AE147: 0 | AF147: 0.05 | AG147: 0 | AH147: 0.05 | AI147: 0 | AJ147: 0.05 | AK147: 0 | AL147: 0.05 | AM147: 0 | AN147: 0.05 | AO147: 0 | AP147: 0.05 | AQ147: 0 | AR147: 0.05 | AS147: 0 | AT147: 0.05 | AU147: 0 | AV147: 0.05 | AW147: 0 | AX147: 0.05 | AY147: 0 | AZ147: 0 | BA147: 0 | BD147: 0.9 | BE147: 1.80 | BF147: 18.00 | BG147: 1.1626 | BH147: 1.1961 | BI147: 16% | BJ147: 20% | BK147: 1.18 | BR147: j | BS147: 1.00 | CF147: 0 | CG147: 0 | CH147: 0 | CI147: 0 | CJ147: 0.05 | CK147: 0 | CL147: 0.05 | CM147: 0 | CN147: 0.05 | CO147: 0 | CP147: 0.05 | CQ147: 0 | CR147: 0.05 | CS147: 0 | CT147: 0.05 | CU147: 0 | CV147: 0.05 | CW147: 0 | CX147: 0.05 | CY147: 0 | CZ147: 0 | DA147: 0
Q148: Periodo 2 | R148: =curvap!C27 -> 0% | S148: 0% | V148: 0.95 | W148: 1.90 | X148: 0.05 | Y148: 0 | Z148: 0.05 | AA148: 0 | AB148: 0.05 | AC148: 0 | AD148: 0.05 | AE148: 0 | AF148: 0.05 | AG148: 0 | AH148: 0.05 | AI148: 0 | AJ148: 0.05 | AK148: 0 | AL148: 0.05 | AM148: 0 | AN148: 0.05 | AO148: 0 | AP148: 0.05 | AQ148: 0 | AR148: 0.05 | AS148: 0 | AT148: 0.05 | AU148: 0 | AV148: 0.05 | AW148: 0 | AX148: 0.05 | AY148: 0 | AZ148: 0 | BA148: 0 | BD148: 0.95 | BE148: 1.90 | BF148: 19.00 | BG148: 1.1723 | BH148: 1.2081 | BI148: 17% | BJ148: 21% | BK148: 1.18 | CF148: 0 | CG148: 0 | CH148: 0 | CI148: 0 | CJ148: 0.05 | CK148: 0 | CL148: 0.05 | CM148: 0 | CN148: 0.05 | CO148: 0 | CP148: 0.05 | CQ148: 0 | CR148: 0.05 | CS148: 0 | CT148: 0.05 | CU148: 0 | CV148: 0.05 | CW148: 0 | CX148: 0.05 | CY148: 0 | CZ148: 0 | DA148: 0
B149: Tipo de cambio en el año 1 | Q149: Periodo 3 | R149: =curvap!C28 -> 0% | S149: 0% | V149: 1 | W149: 2.00 | X149: 0.05 | Y149: =$Q162 -> 0 | Z149: 0.05 | AA149: 0 | AB149: 0.05 | AC149: 0 | AD149: 0.05 | AE149: =$Q165 -> 0 | AF149: 0.05 | AG149: 0 | AH149: 0.05 | AI149: 0 | AJ149: =($R$165-AK149)/(-$S$165) -> 0.05 | AK149: =$Q172 -> 0 | AL149: 0.05 | AM149: 0 | AN149: 0.05 | AO149: 0 | AP149: 0.05 | AQ149: =$Q175 -> 0 | AR149: 0.05 | AS149: 0 | AT149: 0.05 | AU149: 0 | AV149: 0.05 | AW149: 0 | AX149: 0.05 | AY149: 0 | AZ149: 0 | BA149: 0 | BD149: 1 | BE149: 2.00 | BF149: 20.00 | BG149: 1.1822 | BH149: 1.2202 | BI149: 18% | BJ149: 22% | BK149: 1.18 | CF149: 0 | CG149: 0 | CH149: 0 | CI149: 0 | CJ149: =($R$165-CK149)/(-$S$165) -> 0.05 | CK149: =$Q172 -> 0 | CL149: 0.05 | CM149: 0 | CN149: 0.05 | CO149: 0 | CP149: 0.05 | CQ149: =$Q175 -> 0 | CR149: 0.05 | CS149: 0 | CT149: 0.05 | CU149: 0 | CV149: 0.05 | CW149: 0 | CX149: 0.05 | CY149: 0 | CZ149: 0 | DA149: 0
B150: año 1 | C150: Local | D150: Externo | Q150: Periodo 4 | R150: =curvap!C29 -> 0% | S150: 0% | BG150: 12
B151: tc | C151: =C155/D155 -> 1.0 | Q151: Periodo 5 | R151: =curvap!C30 -> 0% | S151: 0% | W151: 0.1 | Y151: =(Y149-Y129)/20 -> 0 | AE151: =(AE149-AE129)/20 -> 0 | AK151: =(AK149-AK129)/20 -> 0 | AQ151: =(AQ149-AQ129)/20 -> 0 | CK151: =(CK149-CK129)/20 -> 0 | CQ151: =(CQ149-CQ129)/20 -> 0
B152: M | C152: =tipo_cambio!C7 -> 1,000 | D152: =tipo_cambio!D7 -> 20,000 | R152: desplaza dobre c de phillips | S152: ajuste expectativas
B153: Y | C153: =tipo_cambio!C8 -> 5,000 | D153: =tipo_cambio!D8 -> 100,000
B154: k | C154: =tipo_cambio!C9 -> 0.20 | D154: =C154 -> 0.20 | Q154: CURVA DE PHILLIPS CORTO PLAZO 1
B155: p | C155: =C152/(C154*C153) -> 1.0 | D155: =D152/(D154*D153) -> 1.0 | Q155: P | R155: p0 | S155: -p1 | T155: U | BD155: TASA DE INTERÉS REAL
B157: Tipo de cambio en el año 2
B158: año 2 | C158: Local | D158: Externo
B159: tc | C159: =C163/D163 -> 1.0 | Q159: =R159+(S159*T159) -> 0% | R159: =R130 -> 5% | S159: =S130 -> (1.00) | T159: =T130 -> 5% | BD159: rr | BE159: rn | BF159: pe
B160: M | C160: =tipo_cambio!C15 -> 1,000 | D160: =tipo_cambio!D15 -> 20,000 | Q160: CURVA DE PHILLIPS CORTO PLAZO 2 | BD160: =(BE160-BF160)/(1+BF160) -> 0.8% | BE160: =tasa_interes!C12 -> 20.0% | BF160: =tasa_interes!D12 -> 19.0%
B161: Y | C161: =tipo_cambio!C16 -> 5,000 | D161: =tipo_cambio!D16 -> 100,000 | Q161: P | R161: p0 | S161: -p1 | T161: U | BD161: TASA DE INTERÉS REAL
B162: k | C162: =tipo_cambio!C17 -> 0.20 | D162: =C162 -> 0.20 | Q162: =R162+(S162*T162) -> 0% | R162: =R159+R148 -> 5% | S162: =S159 -> (1.00) | T162: =T159 -> 5% | BD162: rr | BE162: rn | BF162: pe
B163: p | C163: =C160/(C162*C161) -> 1.0 | D163: =D160/(D162*D161) -> 1.0 | Q163: CURVA DE PHILLIPS CORTO PLAZO 3 | BD163: =(BE163-BF163) -> 1.0% | BE163: =BE160 -> 20.0% | BF163: =BF160 -> 19.0%
Q164: P | R164: p0 | S164: -p1 | T164: U
B165: Diferencias en TC, Inf y Y. | Q165: =R165+(S165*T165) -> 0% | R165: =R162+R149 -> 5% | S165: =S162 -> (1.00) | T165: =T162 -> 5%
C166: Local | D166: Externo | Q166: CURVA DE PHILLIPS CORTO PLAZO 4
B167: Dtc | C167: =(C168-D168)+(D169-C169) -> 0.0
B168: inf | C168: =((C160-C152)/C152) -> 0.0 | D168: =((D160-D152)/D152) -> 0.0
B169: Dy | C169: =(C161-C153)/C153 -> 0.0 | D169: =(D161-D153)/D153 -> 0.0
Q171: P | R171: p0 | S171: -p1 | T171: U
Q172: =R172+(S172*T172) -> 0% | R172: =R165+R150 -> 5% | S172: =S165 -> (1.00) | T172: =T165 -> 5%
Q173: CURVA DE PHILLIPS CORTO PLAZO 5
B174: D. Tipo de Cambio | C174: =C167 -> 0.0 | Q174: P | R174: p0 | S174: -p1 | T174: U
B175: inflación local | C175: =C168 -> 0.0 | Q175: =R175+(S175*T175) -> 0% | R175: =R172+R151 -> 5% | S175: =S172 -> (1.00) | T175: =T172 -> 5%
B176: inflación externa | C176: =D168 -> 0.0
B177: D. Renta externa | C177: =D169 -> 0.0
B178: D. Renta local | C178: =C169 -> 0.0
A180: YP | B180: YPt-1 | C180: j | D180: Yt-0 | E180: YPt-1 | G180: C | H180: k | I180: YP
A181: =A133 -> 95.86 | B181: =B133 -> 100 | C181: =C133 -> 0.9 | D181: =D133 -> 95.40 | E181: =E133 -> 100 | G181: =H187 -> 61.62 | H181: =B130 -> 0.6 | I181: =A185 -> 100.00
F183: =D183-E183 -> 0.00
A184: YP | F184: 1+G
A185: =B181 -> 100 | D185: =A185 -> 100 | F185: 1.03
A186: Expectativa | B186: Expectativa rezagada | C186: Flexibilizador | D186: Expectativa por (1+G) | E186: Observable | F186: Error | G186: Periodos | H186: Consumo | I186: C/Y | K186: Ponderador
A187: =B187+(C187*(D187-E187)) -> 102.70 | B187: =A185 -> 100.00 | C187: =C181 -> 0.90 | D187: =D185*$F$185 -> 103.00 | E187: =B187 -> 100.00 | F187: =D187-E187 -> 3.00 | G187: 1 | H187: =$B$130*A187 -> 61.62 | I187: =$B$136*($B$133/E187)+$D$136 -> 0.60 | K187: =K188-$G$27 -> 0.980 | L187: =E187*K187 -> 98.0 | M187: =$B$181 -> 100
A188: =B188+(C188*(D188-E188)) -> 105.75 | B188: =A187 -> 102.70 | C188: =C187 -> 0.90 | D188: =D187*$F$185 -> 106.09 | E188: =B188 -> 102.70 | F188: 3.39 | G188: 2 | H188: =$B$130*A188 -> 63.45 | I188: =$B$136*($B$133/E188)+$D$136 -> 0.60 | K188: 0.981 | L188: =E188*K188 -> 100.7 | M188: =$B$181 -> 100
A189: 108.92 | B189: =A188 -> 105.75 | C189: =C188 -> 0.90 | D189: =D188*$F$185 -> 109.27 | E189: 105.75 | F189: 3.52 | G189: 3 | H189: 65.35 | I189: 0.60 | K189: 0.982 | L189: 103.8 | M189: 100
A190: 112.19 | B190: =A189 -> 108.92 | C190: 0.90 | D190: =D189*$F$185 -> 112.55 | E190: 108.92 | F190: 3.63 | G190: 4 | H190: 67.31 | I190: 0.60 | K190: 0.983 | L190: 107.1 | M190: 100
A191: 115.55 | B191: =A190 -> 112.19 | C191: 0.90 | D191: 115.93 | E191: 112.19 | F191: 3.74 | G191: 5 | H191: =$B$130*A191 -> 69.33 | I191: 0.59 | K191: 0.984 | L191: 110.4 | M191: 100
A192: 119.02 | B192: =A191 -> 115.55 | C192: 0.90 | D192: 119.41 | E192: 115.55 | F192: 3.85 | G192: 6 | H192: 71.41 | I192: 0.59 | K192: 0.985 | L192: 113.8 | M192: 100
A193: 122.59 | B193: 119.02 | C193: 0.90 | D193: 122.99 | E193: 119.02 | F193: 3.97 | G193: 7 | H193: 73.55 | I193: 0.59 | K193: 0.986 | L193: 117.4 | M193: 100
A194: 126.27 | B194: 122.59 | C194: 0.90 | D194: 126.68 | E194: 122.59 | F194: 4.09 | G194: 8 | H194: 75.76 | I194: 0.59 | K194: 0.987 | L194: 121.0 | M194: 100
A195: 130.06 | B195: 126.27 | C195: 0.90 | D195: 130.48 | E195: 126.27 | F195: 4.21 | G195: 9 | H195: 78.03 | I195: 0.59 | K195: 0.988 | L195: 124.8 | M195: 100
A196: 133.96 | B196: 130.06 | C196: 0.90 | D196: 134.39 | E196: 130.06 | F196: 4.34 | G196: 10 | H196: 80.37 | I196: 0.59 | K196: 0.989 | L196: 128.6 | M196: 100
A197: 137.98 | B197: 133.96 | C197: 0.90 | D197: 138.42 | E197: 133.96 | F197: 4.47 | G197: 11 | H197: 82.79 | I197: 0.58 | K197: 0.990 | L197: 132.6 | M197: 100
A198: 142.12 | B198: 137.98 | C198: 0.90 | D198: 142.58 | E198: 137.98 | F198: 4.60 | G198: 12 | H198: 85.27 | I198: 0.58 | K198: 0.991 | L198: 136.7 | M198: 100
A199: 146.38 | B199: 142.12 | C199: 0.90 | D199: 146.85 | E199: 142.12 | F199: 4.74 | G199: 13 | H199: 87.83 | I199: 0.58 | K199: 0.992 | L199: 141.0 | M199: 100
A200: =B200+(C200*(D200-E200)) -> 150.77 | B200: 146.38 | C200: =C199 -> 0.90 | D200: 151.26 | E200: =B200 -> 146.38 | F200: 4.88 | G200: 14 | H200: 90.46 | I200: 0.58 | K200: 0.993 | L200: 145.4 | M200: 100
A201: 155.29 | B201: 150.77 | C201: 0.90 | D201: 155.80 | E201: 150.77 | F201: 5.03 | G201: 15 | H201: 93.18 | I201: 0.58 | K201: 0.994 | L201: 149.9 | M201: 100
A202: 159.95 | B202: 155.29 | C202: 0.90 | D202: 160.47 | E202: 155.29 | F202: 5.18 | G202: 16 | H202: 95.97 | I202: 0.58 | K202: 0.995 | L202: 154.5 | M202: 100
A203: 164.75 | B203: 159.95 | C203: 0.90 | D203: 165.28 | E203: 159.95 | F203: 5.33 | G203: 17 | H203: 98.85 | I203: 0.58 | K203: 0.996 | L203: 159.3 | M203: 100
A204: 169.69 | B204: 164.75 | C204: 0.90 | D204: 170.24 | E204: 164.75 | F204: 5.49 | G204: 18 | H204: 101.82 | I204: 0.58 | K204: 0.997 | L204: 164.3 | M204: 100
A205: 174.78 | B205: 169.69 | C205: 0.90 | D205: 175.35 | E205: 169.69 | F205: 5.66 | G205: 19 | H205: 104.87 | I205: 0.58 | K205: 0.998 | L205: 169.4 | M205: 100
A206: 180.03 | B206: 174.78 | C206: 0.90 | D206: 180.61 | E206: 174.78 | F206: 5.83 | G206: 20 | H206: 108.02 | I206: 0.57 | K206: 0.999 | L206: 174.6 | M206: 100
A207: 185.43 | B207: 180.03 | C207: 0.90 | D207: 186.03 | E207: 180.03 | F207: 6.00 | G207: 21 | H207: 111.26 | I207: 0.57 | K207: 1 | L207: 180.0 | M207: 100
A208: 190.99 | B208: 185.43 | C208: 0.90 | D208: 191.61 | E208: 185.43 | F208: 6.18 | G208: 22 | H208: 114.60 | I208: 0.57 | K208: =K207+$G$27 -> 1.001 | L208: 185.6 | M208: 100
A209: 196.72 | B209: 190.99 | C209: 0.90 | D209: 197.36 | E209: 190.99 | F209: 6.37 | G209: 23 | H209: 118.03 | I209: 0.57 | K209: 1.002 | L209: 191.4 | M209: 100
A210: 202.62 | B210: 196.72 | C210: 0.90 | D210: 203.28 | E210: 196.72 | F210: 6.56 | G210: 24 | H210: 121.57 | I210: 0.57 | K210: 1.003 | L210: 197.3 | M210: 100
A211: 208.70 | B211: 202.62 | C211: 0.90 | D211: 209.38 | E211: 202.62 | F211: 6.75 | G211: 25 | H211: 125.22 | I211: 0.57 | K211: 1.004 | L211: 203.4 | M211: 100
A212: 214.96 | B212: 208.70 | C212: 0.90 | D212: 215.66 | E212: 208.70 | F212: 6.96 | G212: 26 | H212: 128.98 | I212: 0.57 | K212: 1.005 | L212: 209.7 | M212: 100
A213: 221.41 | B213: 214.96 | C213: 0.90 | D213: 222.13 | E213: 214.96 | F213: 7.17 | G213: 27 | H213: 132.85 | I213: 0.57 | K213: 1.006 | L213: 216.3 | M213: 100
A214: 228.05 | B214: 221.41 | C214: 0.90 | D214: 228.79 | E214: 221.41 | F214: 7.38 | G214: 28 | H214: 136.83 | I214: 0.57 | K214: 1.007 | L214: 223.0 | M214: 100
A215: 234.90 | B215: 228.05 | C215: 0.90 | D215: 235.66 | E215: 228.05 | F215: 7.60 | G215: 29 | H215: 140.94 | I215: 0.57 | K215: 1.008 | L215: 229.9 | M215: 100
A216: 241.94 | B216: 234.90 | C216: 0.90 | D216: 242.73 | E216: 234.90 | F216: 7.83 | G216: 30 | H216: 145.17 | I216: 0.57 | K216: 1.009 | L216: 237.0 | M216: 100
A217: 249.20 | B217: 241.94 | C217: 0.90 | D217: 250.01 | E217: 241.94 | F217: 8.06 | G217: 31 | H217: 149.52 | I217: 0.56 | K217: 1.010 | L217: 244.4 | M217: 100
A218: 256.68 | B218: 249.20 | C218: 0.90 | D218: 257.51 | E218: 249.20 | F218: 8.31 | G218: 32 | H218: 154.01 | I218: 0.56 | K218: 1.011 | L218: 251.9 | M218: 100
A219: 264.38 | B219: 256.68 | C219: 0.90 | D219: 265.23 | E219: 256.68 | F219: 8.56 | G219: 33 | H219: 158.63 | I219: 0.56 | K219: 1.012 | L219: 259.8 | M219: 100
A220: 272.31 | B220: 264.38 | C220: 0.90 | D220: 273.19 | E220: 264.38 | F220: 8.81 | G220: 34 | H220: 163.39 | I220: 0.56 | K220: 1.013 | L220: 267.8 | M220: 100
A221: 280.48 | B221: 272.31 | C221: 0.90 | D221: 281.39 | E221: 272.31 | F221: 9.08 | G221: 35 | H221: 168.29 | I221: 0.56 | K221: 1.014 | L221: 276.1 | M221: 100
A222: 288.89 | B222: 280.48 | C222: 0.90 | D222: 289.83 | E222: 280.48 | F222: 9.35 | G222: 36 | H222: 173.34 | I222: 0.56 | K222: 1.015 | L222: 284.7 | M222: 100
A223: 297.56 | B223: 288.89 | C223: 0.90 | D223: 298.52 | E223: 288.89 | F223: 9.63 | G223: 37 | H223: 178.54 | I223: 0.56 | K223: 1.016 | L223: 293.5 | M223: 100
A224: 306.49 | B224: 297.56 | C224: 0.90 | D224: 307.48 | E224: 297.56 | F224: 9.92 | G224: 38 | H224: 183.89 | I224: 0.56 | K224: 1.017 | L224: 302.6 | M224: 100
A225: 315.68 | B225: 306.49 | C225: 0.90 | D225: 316.70 | E225: 306.49 | F225: 10.22 | G225: 39 | H225: 189.41 | I225: 0.56 | K225: 1.018 | L225: 312.0 | M225: 100
A226: 325.15 | B226: 315.68 | C226: 0.90 | D226: 326.20 | E226: 315.68 | F226: 10.52 | G226: 40 | H226: 195.09 | I226: 0.56 | K226: 1.019 | L226: 321.7 | M226: 100
A227: 334.91 | B227: 325.15 | C227: 0.90 | D227: 335.99 | E227: 325.15 | F227: 10.84 | G227: 41 | H227: 200.94 | I227: 0.56 | K227: 1.020 | L227: 331.7 | M227: 100
